Workbook

Sheet Main
A1: Golf Stats v1.7
B11: =CONCATENATE("Lowest Round ",TEXT('All Stats'!F5,"+0")) -> Lowest Round +15
B15: =HdcpText -> Current Handicap = 13,4

Sheet New-Edit Round
A1: Enter New Round or Edit Previous Round
C3: 0 | D3: 1 | E3: 2 | F3: 3 | Y3: Go Back to Main
B4: Select Course | H4: Date | J4: Rating | L4: Slope | S4: Current Handicap = | W4: =CurrentHdcp -> 13.4
H5: 2006-06-26T08:18:27 | J5: =Rating ->  | L5: =Slope ->  | Y5: To Enter a New Round
Y6: 1. Click Clear Round button.
B7: HOLE | C7: 1 | D7: 2 | E7: 3 | F7: 4 | G7: 5 | H7: 6 | I7: 7 | J7: 8 | K7: 9 | L7: Out | M7: 10 | N7: 11 | O7: 12 | P7: 13 | Q7: 14 | R7: 15 | S7: 16 | T7: 17 | U7: 18 | V7: In | W7: Total | Y7: 2. Select Course from dropdown.
B8: YARDS | C8: =Yards ->  | Y8: 3. Key Date round played.
B9: HDCP | C9: =Hdcp ->  | Y9: 4. Key Data into Turquoise cells.
B10: PAR | C10: =Par ->  | Y10: 5. Click Save as New button.
B11: Score | L11: =SUM(Front1) -> 0 | V11: =SUM(Back1) -> 0 | W11: =L11+V11 -> 0
B12: to par | C12: =IF(C11="",0,C11-C10) -> 0 | D12: =IF(D11="",0,D11-D10) -> 0 | E12: 0 | F12: 0 | G12: 0 | H12: 0 | I12: 0 | J12: 0 | K12: 0 | L12: =SUM(C12:K12) -> 0 | M12: =IF(M11="",0,M11-M10) -> 0 | N12: 0 | O12: 0 | P12: 0 | Q12: 0 | R12: 0 | S12: 0 | T12: 0 | U12: 0 | V12: =SUM(M12:U12) -> 0 | Y12: To Edit or View a Previous Round
B13: running | C13: =C12 -> 0 | D13: =C13+D12 -> 0 | E13: =D13+E12 -> 0 | F13: 0 | G13: 0 | H13: 0 | I13: 0 | J13: 0 | K13: 0 | M13: =K13+M12 -> 0 | N13: =M13+N12 -> 0 | O13: 0 | P13: 0 | Q13: 0 | R13: 0 | S13: 0 | T13: 0 | U13: 0 | Y13: 1. Click the Load Round button.
B14: Putts | L14: =SUM(C14:K14) -> 0 | V14: =SUM(M14:U14) -> 0 | W14: =L14+V14 -> 0 | Y14: 2. Select the round you want to view.
B15: Fairway | L15: =CONCATENATE(SUM(C15:K15),"/",COUNTIF(C10:K10,">3")) -> 0/0 | V15: =CONCATENATE(SUM(M15:U15),"/",COUNTIF(M10:U10,">3")) -> 0/0 | W15: =CONCATENATE(SUM(C15:K15,M15:U15),"/",COUNTIF(C10:K10,">3")+COUNTIF(M10:U10,">3")) -> 0/0 | Y15: 3. Click Ok.
B16: Sand * | L16: =SUM(C16:K16) -> 0 | V16: =SUM(M16:U16) -> 0 | W16: =L16+V16 -> 0 | Y16: -- only continue if you want to edit round --
B17: Major Mistakes | Y17: 4. Make changes.
B18: Miss Drive | Y18: 5. Click the Overwrite Old button.
B19: Miss Iron
B20: GIR | C20: =IF(C$11="",0,IF(C$11-C$14<=(C$10-2),1,0)) -> 0 | D20: =IF(D$11="",0,IF(D$11-D$14<=(D$10-2),1,0)) -> 0 | E20: 0 | F20: 0 | G20: 0 | H20: 0 | I20: 0 | J20: 0 | K20: 0 | L20: =SUM(C20:K20)&"/9" -> 0/9 | M20: =IF(M$11="",0,IF(M$11-M$14<=(M$10-2),1,0)) -> 0 | N20: 0 | O20: 0 | P20: 0 | Q20: 0 | R20: 0 | S20: 0 | T20: 0 | U20: 0 | V20: =SUM(M20:U20)&"/9" -> 0/9 | W20: =SUM(C20:K20,M20:U20)&"/18" -> 0/18 | Y20: When Keying Data
B21: GIR + 1 | C21: =IF(C$11="",0,IF(C$11-C$14=(C$10-1),1,0)) -> 0 | D21: =IF(D$11="",0,IF(D$11-D$14=(D$10-1),1,0)) -> 0 | E21: 0 | F21: 0 | G21: 0 | H21: 0 | I21: 0 | J21: 0 | K21: 0 | L21: =SUM(C21:K21)&"/9" -> 0/9 | M21: =IF(M$11="",0,IF(M$11-M$14=(M$10-1),1,0)) -> 0 | N21: 0 | O21: 0 | P21: 0 | Q21: 0 | R21: 0 | S21: 0 | T21: 0 | U21: 0 | V21: =SUM(M21:U21)&"/9" -> 0/9 | W21: =SUM(C21:K21,M21:U21)&"/18" -> 0/18 | Y21: Key # and hit enter to move to next hole.
B22: GIR + 2 | C22: =IF(C$11="",0,IF(C$11-C$14=C$10,1,0)) -> 0 | D22: =IF(D$11="",0,IF(D$11-D$14=D$10,1,0)) -> 0 | E22: 0 | F22: 0 | G22: 0 | H22: 0 | I22: 0 | J22: 0 | K22: 0 | L22: =SUM(C22:K22)&"/9" -> 0/9 | M22: =IF(M$11="",0,IF(M$11-M$14=M$10,1,0)) -> 0 | N22: 0 | O22: 0 | P22: 0 | Q22: 0 | R22: 0 | S22: 0 | T22: 0 | U22: 0 | V22: =SUM(M22:U22)&"/9" -> 0/9 | W22: =SUM(C22:K22,M22:U22)&"/18" -> 0/18
B23: GIR + 3+ | C23: =IF(SUM(C20:C22)=0,1,0) -> 1 | D23: =IF(SUM(D20:D22)=0,1,0) -> 1 | E23: 1 | F23: 1 | G23: 1 | H23: 1 | I23: 1 | J23: 1 | K23: 1 | L23: =SUM(C23:K23)&"/9" -> 9/9 | M23: =IF(SUM(M20:M22)=0,1,0) -> 1 | N23: 1 | O23: 1 | P23: 1 | Q23: 1 | R23: 1 | S23: 1 | T23: 1 | U23: 1 | V23: =SUM(M23:U23)&"/9" -> 9/9 | W23: =SUM(C23:K23,M23:U23)&"/18" -> 18/18 | Y23: To Save Picture of Scorecard
B24: Notes | Y24: Click the Copy Round button.
B26: * - Sand is number of strokes after your first sand shot from a greenside bunker. For example, if it took you two shots from | Y26: How to Key Misses
B27: the bunker (we've all been there) and then two putts after that, record a 3. | Y27: Left | Z27: L
C28: =C20*$C$3+C21*$D$3+C22*$E$3+C23*$F$3 -> 3 | D28: =D20*$C$3+D21*$D$3+D22*$E$3+D23*$F$3 -> 3 | E28: 3 | F28: 3 | G28: 3 | H28: 3 | I28: 3 | J28: 3 | K28: 3 | M28: =M20*$C$3+M21*$D$3+M22*$E$3+M23*$F$3 -> 3 | N28: 3 | O28: 3 | P28: 3 | Q28: 3 | R28: 3 | S28: 3 | T28: 3 | U28: 3 | Y28: Right | Z28: R
C29: =IF(C10>3,1,0) ->  | D29: =IF(D10>3,1,0) ->  | Y29: Short | Z29: S
Y30: Long | Z30: G
Y31: Shank | Z31: X
Y33: How to Key Major Mistakes
Y34: Driver | AA34: D
Y35: Fairway wood | AA35: F
Y36: Long iron (or hybrid) | AA36: L
Y37: Mid iron | AA37: M
Y38: Short iron | AA38: S
Y39: Wedge | AA39: W
Y40: Pitch | AA40: T
Y41: Chip | AA41: C
Y42: Bump & Run | AA42: B
Y43: Sand Shot | AA43: N
Y44: Putt | AA44: P

Sheet New-Edit Course
A1: Enter New Course or Edit Previously Entered Course
B4: Course Name | H4: Rating | J4: Slope | Y4: To Enter a New Course
Y5: 1. Click Clear Course button.
Y6: 2. Enter Course Name in cell B3.
B7: HOLE | C7: 1 | D7: 2 | E7: 3 | F7: 4 | G7: 5 | H7: 6 | I7: 7 | J7: 8 | K7: 9 | L7: Out | M7: 10 | N7: 11 | O7: 12 | P7: 13 | Q7: 14 | R7: 15 | S7: 16 | T7: 17 | U7: 18 | V7: In | W7: Total | Y7: 3. Enter Course Rating in cell H3.
B8: Yards | L8: =SUM(YardsF2) -> 0 | V8: =SUM(YardsB2) -> 0 | W8: =L8+V8 -> 0 | Y8: 4. Enter Course Slope in cell J3.
B9: Handicap | Y9: 5. Key Yards, Handicap and Par.
B10: Par | L10: =SUM(ParF2) -> 0 | V10: =SUM(ParB2) -> 0 | W10: =L10+V10 -> 0 | Y10: 6. Click the Save as New button.
Y12: To View or Edit a Course
Y13: 1. Click the Load Course button.
Y14: 2. Select the Course you want to view.
Y15: 3. Click ok.
Y16: -- only continue if you want to edit course --
Y17: 4. Make changes.
Y18: 5. Click the Overwrite Course button.
Y20: Par is Guessed based on Yards
Y21: If guess is wrong, then simply change it.
Y23: When Keying Data
Y24: Key # and hit enter to move to next hole.

Sheet All Stats
B2: General Stats | H2: Average Putts by Hit vs Miss Green | M2: L | N2: Iron Misses | X2: Major Mistakes
H3: Par | I3: 3 | J3: 4 | K3: 5 | L3: All | M3: L | O3: Breakdown | S3: Avg Score | W3: D | X3: Driver | Z3: =SUM(IF(ISERR(SEARCH($W3,AllPenalty)),0,1)) -> 13 | AA3: =Z3/SUM($Z$3:$Z$13) -> 0.1477272727
B4: Avg Score | C4: =SUM(AllScore)/COUNTA(AllCourse) -> 90.125 | D4: to par | F4: =SUM(AllToPar)/COUNTA(AllCourse) -> 19.125 | H4: All | I4: 1.96 | J4: 1.911111111 | K4: 1.9 | L4: 1.922222222 | M4: R | N4: Par | O4: 3 | P4: 4 | Q4: 5 | R4: All | S4: 3 | T4: 4 | U4: 5 | V4: All | W4: F | X4: Fairway wood | Z4: =SUM(IF(ISERR(SEARCH($W4,AllPenalty)),0,1)) -> 7 | AA4: =Z4/SUM($Z$3:$Z$13) -> 0.07954545455
B5: Best Score | C5: =MIN(AllScoreTotal) -> 86 | E5: to par | F5: =MIN(AllScoreTotal-AllParTotal) -> 15 | H5: GIR | I5: 2.625 | J5: 2.454545455 | K5: 2 | L5: 2.4 | M5: R | N5: Left | O5: =SUM((AllPar=O$4)*IF(ISERR(SEARCH($M2,AllMissIron)),0,1))/SUM(1*(AllPar=O$4)) -> 0.25 | P5: =SUM((AllPar=P$4)*IF(ISERR(SEARCH($M2,AllMissIron)),0,1))/SUM(1*(AllPar=P$4)) -> 0.1666666667 | Q5: =SUM((AllPar=Q$4)*IF(ISERR(SEARCH($M2,AllMissIron)),0,1))/SUM(1*(AllPar=Q$4)) -> 0.03125 | R5: =SUM((AllPar>=3)*IF(ISERR(SEARCH($M2,AllMissIron)),0,1))/SUM(1*(AllPar>=3)) -> 0.1597222222 | S5: =SUM((AllPar=O$4)*IF(ISERR(SEARCH($M3,AllMissIron)),0,1)*AllToPar)/SUM(IF(ISERR(SEARCH($M3,AllMissIron)),0,1)*(AllPar=O$4)) -> 1.2 | T5: =SUM((AllPar=P$4)*IF(ISERR(SEARCH($M3,AllMissIron)),0,1)*AllToPar)/SUM(IF(ISERR(SEARCH($M3,AllMissIron)),0,1)*(AllPar=P$4)) -> 1.583333333 | U5: =SUM((AllPar=Q$4)*IF(ISERR(SEARCH($M3,AllMissIron)),0,1)*AllToPar)/SUM(IF(ISERR(SEARCH($M3,AllMissIron)),0,1)*(AllPar=Q$4)) -> 0 | V5: =SUM((AllPar>=3)*IF(ISERR(SEARCH($M3,AllMissIron)),0,1)*AllToPar)/SUM(IF(ISERR(SEARCH($M3,AllMissIron)),0,1)*(AllPar>=3)) -> 1.347826087 | W5: L | X5: Long iron (or hybrid) | Z5: =SUM(IF(ISERR(SEARCH($W5,AllPenalty)),0,1)) -> 5 | AA5: 0.05681818182
B6: Avg Putts | C6: =SUM(AllPutt)/COUNTA(AllCourse) -> 35.5 | D6: % of stokes | F6: =C6/C4 -> 0.3938973648 | H6: Non-GIR | I6: 1.647058824 | J6: 1.735294118 | K6: 1.857142857 | L6: 1.738461538 | M6: G | N6: Right | O6: =SUM((AllPar=O$4)*IF(ISERR(SEARCH($M4,AllMissIron)),0,1))/SUM(1*(AllPar=O$4)) -> 0.45 | P6: =SUM((AllPar=P$4)*IF(ISERR(SEARCH($M4,AllMissIron)),0,1))/SUM(1*(AllPar=P$4)) -> 0.3333333333 | Q6: =SUM((AllPar=Q$4)*IF(ISERR(SEARCH($M4,AllMissIron)),0,1))/SUM(1*(AllPar=Q$4)) -> 0.5 | R6: =SUM((AllPar>=3)*IF(ISERR(SEARCH($M4,AllMissIron)),0,1))/SUM(1*(AllPar>=3)) -> 0.4027777778 | S6: =SUM((AllPar=O$4)*IF(ISERR(SEARCH($M5,AllMissIron)),0,1)*AllToPar)/SUM(IF(ISERR(SEARCH($M5,AllMissIron)),0,1)*(AllPar=O$4)) -> 0.9444444444 | T6: =SUM((AllPar=P$4)*IF(ISERR(SEARCH($M5,AllMissIron)),0,1)*AllToPar)/SUM(IF(ISERR(SEARCH($M5,AllMissIron)),0,1)*(AllPar=P$4)) -> 1.125 | U6: =SUM((AllPar=Q$4)*IF(ISERR(SEARCH($M5,AllMissIron)),0,1)*AllToPar)/SUM(IF(ISERR(SEARCH($M5,AllMissIron)),0,1)*(AllPar=Q$4)) -> 1.25 | V6: =SUM((AllPar>=3)*IF(ISERR(SEARCH($M5,AllMissIron)),0,1)*AllToPar)/SUM(IF(ISERR(SEARCH($M5,AllMissIron)),0,1)*(AllPar>=3)) -> 1.103448276 | W6: M | X6: Mid iron | Z6: =SUM(IF(ISERR(SEARCH($W6,AllPenalty)),0,1)) -> 8 | AA6: 0.09090909091
B7: Avg # of GIRs | C7: =SUM((AllGIR=0)*1)/COUNTA(AllCourse) -> 4.875 | D7: GD predicted avg | F7: =HLOOKUP(ROUND(C7,0),Misc!B5:N6,2) -> 85 | M7: G | N7: Long | O7: =SUM((AllPar=O$4)*IF(ISERR(SEARCH($M6,AllMissIron)),0,1))/SUM(1*(AllPar=O$4)) -> 0.05 | P7: =SUM((AllPar=P$4)*IF(ISERR(SEARCH($M6,AllMissIron)),0,1))/SUM(1*(AllPar=P$4)) -> 0.1527777778 | Q7: =SUM((AllPar=Q$4)*IF(ISERR(SEARCH($M6,AllMissIron)),0,1))/SUM(1*(AllPar=Q$4)) -> 0.125 | R7: =SUM((AllPar>=3)*IF(ISERR(SEARCH($M6,AllMissIron)),0,1))/SUM(1*(AllPar>=3)) -> 0.1180555556 | S7: =SUM((AllPar=O$4)*IF(ISERR(SEARCH($M7,AllMissIron)),0,1)*AllToPar)/SUM(IF(ISERR(SEARCH($M7,AllMissIron)),0,1)*(AllPar=O$4)) -> 1.5 | T7: =SUM((AllPar=P$4)*IF(ISERR(SEARCH($M7,AllMissIron)),0,1)*AllToPar)/SUM(IF(ISERR(SEARCH($M7,AllMissIron)),0,1)*(AllPar=P$4)) -> 1.090909091 | U7: =SUM((AllPar=Q$4)*IF(ISERR(SEARCH($M7,AllMissIron)),0,1)*AllToPar)/SUM(IF(ISERR(SEARCH($M7,AllMissIron)),0,1)*(AllPar=Q$4)) -> 0.5 | V7: =SUM((AllPar>=3)*IF(ISERR(SEARCH($M7,AllMissIron)),0,1)*AllToPar)/SUM(IF(ISERR(SEARCH($M7,AllMissIron)),0,1)*(AllPar>=3)) -> 1 | W7: S | X7: Short iron | Z7: =SUM(IF(ISERR(SEARCH($W7,AllPenalty)),0,1)) -> 13 | AA7: 0.1477272727
D8: Avg Score - GD | F8: =C4-F7 -> 5.125 | H8: Putting Breakdown | M8: S | N8: Short | O8: =SUM((AllPar=O$4)*IF(ISERR(SEARCH($M8,AllMissIron)),0,1))/SUM(1*(AllPar=O$4)) -> 0.375 | P8: =SUM((AllPar=P$4)*IF(ISERR(SEARCH($M8,AllMissIron)),0,1))/SUM(1*(AllPar=P$4)) -> 0.3055555556 | Q8: =SUM((AllPar=Q$4)*IF(ISERR(SEARCH($M8,AllMissIron)),0,1))/SUM(1*(AllPar=Q$4)) -> 0.15625 | R8: =SUM((AllPar>=3)*IF(ISERR(SEARCH($M8,AllMissIron)),0,1))/SUM(1*(AllPar>=3)) -> 0.2916666667 | S8: =SUM((AllPar=O$4)*IF(ISERR(SEARCH($M9,AllMissIron)),0,1)*AllToPar)/SUM(IF(ISERR(SEARCH($M9,AllMissIron)),0,1)*(AllPar=O$4)) -> 0.6666666667 | T8: =SUM((AllPar=P$4)*IF(ISERR(SEARCH($M9,AllMissIron)),0,1)*AllToPar)/SUM(IF(ISERR(SEARCH($M9,AllMissIron)),0,1)*(AllPar=P$4)) -> 0.9545454545 | U8: =SUM((AllPar=Q$4)*IF(ISERR(SEARCH($M9,AllMissIron)),0,1)*AllToPar)/SUM(IF(ISERR(SEARCH($M9,AllMissIron)),0,1)*(AllPar=Q$4)) -> 1 | V8: =SUM((AllPar>=3)*IF(ISERR(SEARCH($M9,AllMissIron)),0,1)*AllToPar)/SUM(IF(ISERR(SEARCH($M9,AllMissIron)),0,1)*(AllPar>=3)) -> 0.8571428571 | W8: W | X8: Wedge | Z8: =SUM(IF(ISERR(SEARCH($W8,AllPenalty)),0,1)) -> 4 | AA8: 0.04545454545
B9: =IF(C4>F7,"Either your short game is letting you down or you have blow up holes!","You have a good short game, now go hit some more greens!") -> Either your short game is letting you down or you have blow up holes! | H9: Par | I9: 3 | J9: 4 | K9: 5 | L9: All | M9: S | N9: Shank | O9: =SUM((AllPar=O$4)*IF(ISERR(SEARCH($M10,AllMissIron)),0,1))/SUM(1*(AllPar=O$4)) -> 0.025 | P9: =SUM((AllPar=P$4)*IF(ISERR(SEARCH($M10,AllMissIron)),0,1))/SUM(1*(AllPar=P$4)) -> 0.01388888889 | Q9: =SUM((AllPar=Q$4)*IF(ISERR(SEARCH($M10,AllMissIron)),0,1))/SUM(1*(AllPar=Q$4)) -> 0.03125 | R9: =SUM((AllPar>=3)*IF(ISERR(SEARCH($M10,AllMissIron)),0,1))/SUM(1*(AllPar>=3)) -> 0.02083333333 | S9: =SUM((AllPar=O$4)*IF(ISERR(SEARCH($M11,AllMissIron)),0,1)*AllToPar)/SUM(IF(ISERR(SEARCH($M11,AllMissIron)),0,1)*(AllPar=O$4)) -> 1 | T9: =SUM((AllPar=P$4)*IF(ISERR(SEARCH($M11,AllMissIron)),0,1)*AllToPar)/SUM(IF(ISERR(SEARCH($M11,AllMissIron)),0,1)*(AllPar=P$4)) -> 2 | U9: =SUM((AllPar=Q$4)*IF(ISERR(SEARCH($M11,AllMissIron)),0,1)*AllToPar)/SUM(IF(ISERR(SEARCH($M11,AllMissIron)),0,1)*(AllPar=Q$4)) -> 2 | V9: =SUM((AllPar>=3)*IF(ISERR(SEARCH($M11,AllMissIron)),0,1)*AllToPar)/SUM(IF(ISERR(SEARCH($M11,AllMissIron)),0,1)*(AllPar>=3)) -> 1.666666667 | W9: T | X9: Pitch | Z9: =SUM(IF(ISERR(SEARCH($W9,AllPenalty)),0,1)) -> 7 | AA9: 0.07954545455
H10: No putt | I10: =SUM((AllPar=I$9)*(AllPutt=0)*1)/SUM((AllPar=I$9)*1) -> 0 | J10: =SUM((AllPar=J$9)*(AllPutt=0)*1)/SUM((AllPar=J$9)*1) -> 0 | K10: =SUM((AllPar=K$9)*(AllPutt=0)*1)/SUM((AllPar=K$9)*1) -> 0 | L10: =SUM((AllPutt=0)*1)/COUNTA(AllPutt) -> 0 | M10: X | N10: No Miss | O10: =SUM((AllPar=O$4)*ISBLANK(AllMissIron))/SUM(1*(AllPar=O$4)) -> 0.1 | P10: =SUM((AllPar=P$4)*ISBLANK(AllMissIron))/SUM(1*(AllPar=P$4)) -> 0.2222222222 | Q10: =SUM((AllPar=Q$4)*ISBLANK(AllMissIron))/SUM(1*(AllPar=Q$4)) -> 0.25 | R10: =SUM((AllPar>=3)*ISBLANK(AllMissIron))/SUM(1*(AllPar>=3)) -> 0.1944444444 | S10: =SUM((AllPar=O$4)*ISBLANK(AllMissIron)*AllToPar)/SUM(ISBLANK(AllMissIron)*(AllPar=O$4)) -> 0.25 | T10: =SUM((AllPar=P$4)*ISBLANK(AllMissIron)*AllToPar)/SUM(ISBLANK(AllMissIron)*(AllPar=P$4)) -> 1.25 | U10: =SUM((AllPar=Q$4)*ISBLANK(AllMissIron)*AllToPar)/SUM(ISBLANK(AllMissIron)*(AllPar=Q$4)) -> 1 | V10: =SUM((AllPar>=3)*ISBLANK(AllMissIron)*AllToPar)/SUM(ISBLANK(AllMissIron)*(AllPar>=3)) -> 1.035714286 | W10: C | X10: Chip | Z10: =SUM(IF(ISERR(SEARCH($W10,AllPenalty)),0,1)) -> 4 | AA10: 0.04545454545
H11: 1 putt | I11: =SUM((AllPar=I$9)*(AllPutt=1)*1)/SUM((AllPar=I$9)*1) -> 0.325 | J11: =SUM((AllPar=J$9)*(AllPutt=1)*1)/SUM((AllPar=J$9)*1) -> 0.1944444444 | K11: =SUM((AllPar=K$9)*(AllPutt=1)*1)/SUM((AllPar=K$9)*1) -> 0.125 | L11: =SUM((AllPutt=1)*1)/COUNTA(AllPutt) -> 0.2152777778 | M11: X | W11: B | X11: Bump & Run | Z11: =SUM(IF(ISERR(SEARCH($W11,AllPenalty)),0,1)) -> 0 | AA11: 0
B12: Score by Par & Distance | H12: 2 putts | I12: =SUM((AllPar=I$9)*(AllPutt=2)*1)/SUM((AllPar=I$9)*1) -> 0.4 | J12: =SUM((AllPar=J$9)*(AllPutt=2)*1)/SUM((AllPar=J$9)*1) -> 0.625 | K12: =SUM((AllPar=K$9)*(AllPutt=2)*1)/SUM((AllPar=K$9)*1) -> 0.78125 | L12: =SUM((AllPutt=2)*1)/COUNTA(AllPutt) -> 0.5972222222 | N12: Drive Misses | W12: N | X12: Sand Shot | Z12: =SUM(IF(ISERR(SEARCH($W12,AllPenalty)),0,1)) -> 2 | AA12: 0.02272727273
B13: Par | C13: All | D13: Short | E13: Medium | F13: Long | H13: 3+ putts | I13: =SUM((AllPar=I$9)*(AllPutt>2)*1)/SUM((AllPar=I$9)*1) -> 0.275 | J13: =SUM((AllPar=J$9)*(AllPutt>2)*1)/SUM((AllPar=J$9)*1) -> 0.1805555556 | K13: =SUM((AllPar=K$9)*(AllPutt>2)*1)/SUM((AllPar=K$9)*1) -> 0.09375 | L13: =SUM((AllPutt>2)*1)/COUNTA(AllPutt) -> 0.1875 | O13: Breakdown | S13: Avg Score | W13: P | X13: Putt | Z13: =SUM(IF(ISERR(SEARCH($W13,AllPenalty)),0,1)) -> 25 | AA13: 0.2840909091
B14: 3 | C14: =SUM((AllPar=$B14)*(AllToPar))/SUM((AllPar=$B14)*1) -> 0.875 | D14: =SUM((AllPar=$B14)*(AllYards<150)*AllToPar)/SUM((AllPar=$B14)*(AllYards<150)) -> 0.6 | E14: =SUM((AllPar=$B14)*(AllYards>=150)*(AllYards<=190)*AllToPar)/SUM((AllPar=$B14)*(AllYards>=150)*(AllYards<=190)) -> 0.8571428571 | F14: =SUM((AllPar=$B14)*(AllYards>190)*AllToPar)/SUM((AllPar=$B14)*(AllYards>190)) -> 1 | M14: L | N14: Par | O14: 3 | P14: 4 | Q14: 5 | R14: All | S14: 3 | T14: 4 | U14: 5 | V14: All
B15: 4 | C15: =SUM((AllPar=$B15)*(AllToPar))/SUM((AllPar=$B15)*1) -> 1.166666667 | D15: =SUM((AllPar=$B15)*(AllYards<350)*AllToPar)/SUM((AllPar=$B15)*(AllYards<350)) -> 0.8571428571 | E15: =SUM((AllPar=$B15)*(AllYards>=350)*(AllYards<=410)*AllToPar)/SUM((AllPar=$B15)*(AllYards>=350)*(AllYards<=410)) -> 1.166666667 | F15: =SUM((AllPar=$B15)*(AllYards>410)*AllToPar)/SUM((AllPar=$B15)*(AllYards>410)) -> 1.888888889 | H15: Average Score to Par by GIR | M15: L | N15: Left | P15: =SUM((AllPar=P$14)*IF(ISERR(SEARCH($M14,AllMissDrive)),0,1))/SUM(1*(AllPar=P$14)) -> 0.2361111111 | Q15: =SUM((AllPar=Q$14)*IF(ISERR(SEARCH($M14,AllMissDrive)),0,1))/SUM(1*(AllPar=Q$14)) -> 0.125 | R15: =SUM((AllPar>=4)*IF(ISERR(SEARCH($M14,AllMissDrive)),0,1))/SUM(1*(AllPar>=4)) -> 0.2019230769 | T15: =SUM((AllPar=P$14)*IF(ISERR(SEARCH($M15,AllMissDrive)),0,1)*AllToPar)/SUM(1*(AllPar=P$14)*IF(ISERR(SEARCH($M15,AllMissDrive)),0,1)) -> 0.8823529412 | U15: =SUM((AllPar=Q$14)*IF(ISERR(SEARCH($M15,AllMissDrive)),0,1)*AllToPar)/SUM(1*(AllPar=Q$14)*IF(ISERR(SEARCH($M15,AllMissDrive)),0,1)) -> 1.75 | V15: =SUM((AllPar>=4)*IF(ISERR(SEARCH($M15,AllMissDrive)),0,1)*AllToPar)/SUM(1*(AllPar>=4)*IF(ISERR(SEARCH($M15,AllMissDrive)),0,1)) -> 1.047619048
B16: 5 | C16: =SUM((AllPar=$B16)*(AllToPar))/SUM((AllPar=$B16)*1) -> 1.0625 | D16: =SUM((AllPar=$B16)*(AllYards<500)*AllToPar)/SUM((AllPar=$B16)*(AllYards<500)) -> 0.5 | E16: =SUM((AllPar=$B16)*(AllYards>=500)*(AllYards<=560)*AllToPar)/SUM((AllPar=$B16)*(AllYards>=500)*(AllYards<=560)) -> 1.285714286 | F16: =SUM((AllPar=$B16)*(AllYards>560)*AllToPar)/SUM((AllPar=$B16)*(AllYards>560)) -> 1.375 | H16: Par | I16: 3 | J16: 4 | K16: 5 | L16: All | M16: R | N16: Right | P16: =SUM((AllPar=P$14)*IF(ISERR(SEARCH($M16,AllMissDrive)),0,1))/SUM(1*(AllPar=P$14)) -> 0.1944444444 | Q16: =SUM((AllPar=Q$14)*IF(ISERR(SEARCH($M16,AllMissDrive)),0,1))/SUM(1*(AllPar=Q$14)) -> 0.28125 | R16: =SUM((AllPar>=4)*IF(ISERR(SEARCH($M16,AllMissDrive)),0,1))/SUM(1*(AllPar>=4)) -> 0.2211538462 | T16: =SUM((AllPar=P$14)*IF(ISERR(SEARCH($M17,AllMissDrive)),0,1)*AllToPar)/SUM(1*(AllPar=P$14)*IF(ISERR(SEARCH($M17,AllMissDrive)),0,1)) -> 1.571428571 | U16: =SUM((AllPar=Q$14)*IF(ISERR(SEARCH($M17,AllMissDrive)),0,1)*AllToPar)/SUM(1*(AllPar=Q$14)*IF(ISERR(SEARCH($M17,AllMissDrive)),0,1)) -> 1.111111111 | V16: =SUM((AllPar>=4)*IF(ISERR(SEARCH($M17,AllMissDrive)),0,1)*AllToPar)/SUM(1*(AllPar>=4)*IF(ISERR(SEARCH($M17,AllMissDrive)),0,1)) -> 1.391304348
H17: GIR | I17: =SUM((AllPar=I$23)*(AllGIR=$A34)*(AllToPar))/SUM((AllPar=I$23)*(AllGIR=$A34)) -> 0.75 | J17: =SUM((AllPar=J$23)*(AllGIR=$A34)*(AllToPar))/SUM((AllPar=J$23)*(AllGIR=$A34)) -> 0.3125 | K17: =SUM((AllPar=K$23)*(AllGIR=$A34)*(AllToPar))/SUM((AllPar=K$23)*(AllGIR=$A34)) -> 0.09090909091 | L17: =SUM((AllGIR=$A34)*(AllToPar))/SUM(1*(AllGIR=$A34)) -> 0.3846153846 | M17: R | N17: Shank | P17: =SUM((AllPar=P$14)*IF(ISERR(SEARCH($M18,AllMissDrive)),0,1))/SUM(1*(AllPar=P$14)) -> 0.05555555556 | Q17: =SUM((AllPar=Q$14)*IF(ISERR(SEARCH($M18,AllMissDrive)),0,1))/SUM(1*(AllPar=Q$14)) -> 0.0625 | R17: =SUM((AllPar>=4)*IF(ISERR(SEARCH($M18,AllMissDrive)),0,1))/SUM(1*(AllPar>=4)) -> 0.05769230769 | T17: =SUM((AllPar=P$14)*IF(ISERR(SEARCH($M19,AllMissDrive)),0,1)*AllToPar)/SUM(1*(AllPar=P$14)*IF(ISERR(SEARCH($M19,AllMissDrive)),0,1)) -> 2.5 | U17: =SUM((AllPar=Q$14)*IF(ISERR(SEARCH($M19,AllMissDrive)),0,1)*AllToPar)/SUM(1*(AllPar=Q$14)*IF(ISERR(SEARCH($M19,AllMissDrive)),0,1)) -> 2.5 | V17: =SUM((AllPar>=4)*IF(ISERR(SEARCH($M19,AllMissDrive)),0,1)*AllToPar)/SUM(1*(AllPar>=4)*IF(ISERR(SEARCH($M19,AllMissDrive)),0,1)) -> 2.5
B18: Score Breakdown | H18: GIR+1 | I18: =SUM((AllPar=I$23)*(AllGIR=$A35)*(AllToPar))/SUM((AllPar=I$23)*(AllGIR=$A35)) -> 0.6666666667 | J18: =SUM((AllPar=J$23)*(AllGIR=$A35)*(AllToPar))/SUM((AllPar=J$23)*(AllGIR=$A35)) -> 0.7878787879 | K18: =SUM((AllPar=K$23)*(AllGIR=$A35)*(AllToPar))/SUM((AllPar=K$23)*(AllGIR=$A35)) -> 0.9 | L18: =SUM((AllGIR=$A35)*(AllToPar))/SUM(1*(AllGIR=$A35)) -> 0.765625 | M18: X | N18: No Miss | P18: =SUM((AllPar=P$14)*ISBLANK(AllMissDrive))/SUM(1*(AllPar=P$14)) -> 0.5 | Q18: =SUM((AllPar=Q$14)*ISBLANK(AllMissDrive))/SUM(1*(AllPar=Q$14)) -> 0.53125 | R18: =SUM((AllPar>=4)*ISBLANK(AllMissDrive))/SUM(1*(AllPar>=4)) -> 0.5096153846 | T18: =SUM((AllPar=P$14)*ISBLANK(AllMissDrive)*AllToPar)/SUM(1*(AllPar=P$14)*ISBLANK(AllMissDrive)) -> 1 | U18: =SUM((AllPar=Q$14)*ISBLANK(AllMissDrive)*AllToPar)/SUM(1*(AllPar=Q$14)*ISBLANK(AllMissDrive)) -> 0.7058823529 | V18: =SUM((AllPar>=4)*ISBLANK(AllMissDrive)*AllToPar)/SUM(1*(AllPar>=4)*ISBLANK(AllMissDrive)) -> 0.9056603774
B19: Par | C19: 3 | D19: 4 | E19: 5 | F19: All | H19: GIR+2 | I19: =SUM((AllPar=I$23)*(AllGIR=$A36)*(AllToPar))/SUM((AllPar=I$23)*(AllGIR=$A36)) -> 1.4 | J19: =SUM((AllPar=J$23)*(AllGIR=$A36)*(AllToPar))/SUM((AllPar=J$23)*(AllGIR=$A36)) -> 2 | K19: =SUM((AllPar=K$23)*(AllGIR=$A36)*(AllToPar))/SUM((AllPar=K$23)*(AllGIR=$A36)) -> 1.75 | L19: =SUM((AllGIR=$A36)*(AllToPar))/SUM(1*(AllGIR=$A36)) -> 1.838709677 | M19: X
B20: Eagle | C20: =SUM((AllPar=C$19)*(AllToPar=$A41))/SUM((AllPar=C$19)*1) -> 0 | D20: =SUM((AllPar=D$19)*(AllToPar=$A41))/SUM((AllPar=D$19)*1) -> 0 | E20: =SUM((AllPar=E$19)*(AllToPar=$A41))/SUM((AllPar=E$19)*1) -> 0 | F20: =SUM(1*(AllToPar=$A41))/COUNTA(AllPar) -> 0 | H20: GIR+3+ | I20: =SUM((AllPar=I$23)*(AllGIR>=$A37)*(AllToPar))/SUM((AllPar=I$23)*(AllGIR=$A37)) -> 2.5 | J20: =SUM((AllPar=J$23)*(AllGIR>=$A37)*(AllToPar))/SUM((AllPar=J$23)*(AllGIR=$A37)) -> 3.4 | K20: =SUM((AllPar=K$23)*(AllGIR>=$A37)*(AllToPar))/SUM((AllPar=K$23)*(AllGIR=$A37)) -> 3.333333333 | L20: =SUM((AllGIR>=$A37)*(AllToPar))/SUM(1*(AllGIR=$A37)) -> 3.2 | N20: Fairways Hit
B21: Birdie | C21: =SUM((AllPar=C$19)*(AllToPar=$A42))/SUM((AllPar=C$19)*1) -> 0.025 | D21: =SUM((AllPar=D$19)*(AllToPar=$A42))/SUM((AllPar=D$19)*1) -> 0 | E21: =SUM((AllPar=E$19)*(AllToPar=$A42))/SUM((AllPar=E$19)*1) -> 0 | F21: =SUM(1*(AllToPar=$A42))/COUNTA(AllPar) -> 0.006944444444 | O21: Breakdown | S21: Avg Score
B22: Par | C22: =SUM((AllPar=C$19)*(AllToPar=$A43))/SUM((AllPar=C$19)*1) -> 0.225 | D22: =SUM((AllPar=D$19)*(AllToPar=$A43))/SUM((AllPar=D$19)*1) -> 0.2916666667 | E22: =SUM((AllPar=E$19)*(AllToPar=$A43))/SUM((AllPar=E$19)*1) -> 0.375 | F22: =SUM(1*(AllToPar=$A43))/COUNTA(AllPar) -> 0.2916666667 | H22: GIR Breakdown | N22: Par | O22: 3 | P22: 4 | Q22: 5 | R22: All | S22: 3 | T22: 4 | U22: 5 | V22: All
B23: Bogey | C23: =SUM((AllPar=C$19)*(AllToPar=$A44))/SUM((AllPar=C$19)*1) -> 0.625 | D23: =SUM((AllPar=D$19)*(AllToPar=$A44))/SUM((AllPar=D$19)*1) -> 0.4027777778 | E23: =SUM((AllPar=E$19)*(AllToPar=$A44))/SUM((AllPar=E$19)*1) -> 0.3125 | F23: =SUM(1*(AllToPar=$A44))/COUNTA(AllPar) -> 0.4444444444 | H23: Par | I23: 3 | J23: 4 | K23: 5 | L23: All | N23: Hit | P23: =SUM((AllPar=P22)*(AllFairway))/SUM(1*(AllPar=P22)) -> 0.5555555556 | Q23: =SUM((AllPar=Q22)*(AllFairway))/SUM(1*(AllPar=Q22)) -> 0.46875 | R23: =SUM((AllPar>=4)*(AllFairway))/SUM(1*(AllPar>=4)) -> 0.5288461538 | T23: =SUM((AllPar=P$22)*(AllFairway=1)*(AllToPar))/SUM((AllPar=P$22)*(AllFairway=1)) -> 1.025 | U23: =SUM((AllPar=Q$22)*(AllFairway=1)*(AllToPar))/SUM((AllPar=Q$22)*(AllFairway=1)) -> 0.7333333333 | V23: =SUM((AllPar>=4)*(AllFairway=1)*(AllToPar))/SUM((AllPar>=4)*(AllFairway=1)) -> 0.9454545455
B24: Double | C24: =SUM((AllPar=C$19)*(AllToPar=$A45))/SUM((AllPar=C$19)*1) -> 0.1 | D24: =SUM((AllPar=D$19)*(AllToPar=$A45))/SUM((AllPar=D$19)*1) -> 0.1805555556 | E24: =SUM((AllPar=E$19)*(AllToPar=$A45))/SUM((AllPar=E$19)*1) -> 0.21875 | F24: =SUM(1*(AllToPar=$A45))/COUNTA(AllPar) -> 0.1666666667 | H24: GIR | I24: =SUM((AllPar=I$23)*(AllGIR=$A27))/SUM((AllPar=I$23)*1) -> 0.3 | J24: =SUM((AllPar=J$23)*(AllGIR=$A27))/SUM((AllPar=J$23)*1) -> 0.2222222222 | K24: =SUM((AllPar=K$23)*(AllGIR=$A27))/SUM((AllPar=K$23)*1) -> 0.34375 | L24: =SUM((AllGIR=$A27)*1)/SUM((AllPar>0)*1) -> 0.2708333333 | N24: Miss | P24: =1-P23 -> 0.4444444444 | Q24: =1-Q23 -> 0.53125 | R24: =1-R23 -> 0.4711538462 | T24: =SUM((AllPar=P$22)*(AllFairway=0)*(AllToPar))/SUM((AllPar=P$22)*(AllFairway=0)) -> 1.34375 | U24: =SUM((AllPar=Q$22)*(AllFairway=0)*(AllToPar))/SUM((AllPar=Q$22)*(AllFairway=0)) -> 1.352941176 | V24: =SUM((AllPar>=4)*(AllFairway=0)*(AllToPar))/SUM((AllPar>=4)*(AllFairway=0)) -> 1.346938776
B25: Triple+ | C25: =SUM((AllPar=C$19)*(AllToPar>=$A46))/SUM((AllPar=C$19)*1) -> 0.025 | D25: =SUM((AllPar=D$19)*(AllToPar>=$A46))/SUM((AllPar=D$19)*1) -> 0.125 | E25: =SUM((AllPar=E$19)*(AllToPar>=$A46))/SUM((AllPar=E$19)*1) -> 0.09375 | F25: =SUM(1*(AllToPar>=$A46))/COUNTA(AllPar) -> 0.09027777778 | H25: GIR+1 | I25: =SUM((AllPar=I$23)*(AllGIR=$A28))/SUM((AllPar=I$23)*1) -> 0.525 | J25: =SUM((AllPar=J$23)*(AllGIR=$A28))/SUM((AllPar=J$23)*1) -> 0.4583333333 | K25: =SUM((AllPar=K$23)*(AllGIR=$A28))/SUM((AllPar=K$23)*1) -> 0.3125 | L25: =SUM((AllGIR=$A28)*1)/SUM((AllPar>0)*1) -> 0.4444444444 | N25: "Penalty" for miss | T25: =T24-T23 -> 0.31875 | U25: =U24-U23 -> 0.6196078431 | V25: =V24-V23 -> 0.4014842301
H26: GIR+2 | I26: =SUM((AllPar=I$23)*(AllGIR=$A29))/SUM((AllPar=I$23)*1) -> 0.125 | J26: =SUM((AllPar=J$23)*(AllGIR=$A29))/SUM((AllPar=J$23)*1) -> 0.25 | K26: =SUM((AllPar=K$23)*(AllGIR=$A29))/SUM((AllPar=K$23)*1) -> 0.25 | L26: =SUM((AllGIR=$A29)*1)/SUM((AllPar>0)*1) -> 0.2152777778
A27: 0 | H27: GIR+3+ | I27: =SUM((AllPar=I$23)*(AllGIR>=$A30))/SUM((AllPar=I$23)*1) -> 0.05 | J27: =SUM((AllPar=J$23)*(AllGIR>=$A30))/SUM((AllPar=J$23)*1) -> 0.06944444444 | K27: =SUM((AllPar=K$23)*(AllGIR>=$A30))/SUM((AllPar=K$23)*1) -> 0.09375 | L27: =SUM((AllGIR>=$A30)*1)/SUM((AllPar>0)*1) -> 0.06944444444
A28: 1
A29: 2
A30: 3
A34: 0
A35: 1
A36: 2
A37: 3
A41: -2
A42: -1
A43: 0
A44: 1
A45: 2
A46: 3

Sheet Last 5 Rounds

Sheet Course Stats
B2: Select Course | G2: Rating | I2: Slope | K2: Rounds
B3: Chace Lake (Blue) | G3: =Rating2 -> 71.2 | I3: =Slope2 -> 125 | K3: =COUNTIF(AllCourse,B3) -> 3
B5: HOLE | C5: =X5 -> Total | D5: 1 | E5: 2 | F5: 3 | G5: 4 | H5: 5 | I5: 6 | J5: 7 | K5: 8 | L5: 9 | M5: Out | N5: 10 | O5: 11 | P5: 12 | Q5: 13 | R5: 14 | S5: 15 | T5: 16 | U5: 17 | V5: 18 | W5: In | X5: Total
B6: YARDS | C6: =X6 -> 6577 | D6: =Yards2 -> 380 | E6: 155 | F6: 414 | G6: 308 | H6: 574 | I6: 419 | J6: 548 | K6: 206 | L6: 320 | M6: 3324 | N6: 405 | O6: 376 | P6: 198 | Q6: 522 | R6: 172 | S6: 378 | T6: 554 | U6: 194 | V6: 454 | W6: 3253 | X6: 6577
B7: HDCP | C7: =X7 -> 0 | D7: =Hdcp2 -> 13 | E7: 17 | F7: 3 | G7: 11 | H7: 1 | I7: 9 | J7: 5 | K7: 15 | L7: 7 | M7: 0 | N7: 4 | O7: 10 | P7: 14 | Q7: 8 | R7: 18 | S7: 12 | T7: 2 | U7: 16 | V7: 6 | W7: 0 | X7: 0
B8: PAR | C8: =X8 -> 71 | D8: =_Par2 -> 4 | E8: 3 | F8: 4 | G8: 4 | H8: 5 | I8: 4 | J8: 5 | K8: 3 | L8: 4 | M8: 36 | N8: 4 | O8: 4 | P8: 3 | Q8: 5 | R8: 3 | S8: 4 | T8: 5 | U8: 3 | V8: 4 | W8: 35 | X8: 71
B9: Avg Score | C9: =SUM((AllCourse=Course2)*(AllScore))/SUM((AllCourse=Course2)*1) -> 93.33333333 | D9: =SUM((AllCourse=Course2)*(AllHole=D$5)*(AllScore))/SUM((AllCourse=Course2)*(AllHole=D$5)) -> 5.333333333 | E9: =SUM((AllCourse=Course2)*(AllHole=E$5)*(AllScore))/SUM((AllCourse=Course2)*(AllHole=E$5)) -> 2.666666667 | F9: =SUM((AllCourse=Course2)*(AllHole=F$5)*(AllScore))/SUM((AllCourse=Course2)*(AllHole=F$5)) -> 5 | G9: =SUM((AllCourse=Course2)*(AllHole=G$5)*(AllScore))/SUM((AllCourse=Course2)*(AllHole=G$5)) -> 5 | H9: =SUM((AllCourse=Course2)*(AllHole=H$5)*(AllScore))/SUM((AllCourse=Course2)*(AllHole=H$5)) -> 5.666666667 | I9: =SUM((AllCourse=Course2)*(AllHole=I$5)*(AllScore))/SUM((AllCourse=Course2)*(AllHole=I$5)) -> 6.333333333 | J9: =SUM((AllCourse=Course2)*(AllHole=J$5)*(AllScore))/SUM((AllCourse=Course2)*(AllHole=J$5)) -> 5.666666667 | K9: =SUM((AllCourse=Course2)*(AllHole=K$5)*(AllScore))/SUM((AllCourse=Course2)*(AllHole=K$5)) -> 4.333333333 | L9: =SUM((AllCourse=Course2)*(AllHole=L$5)*(AllScore))/SUM((AllCourse=Course2)*(AllHole=L$5)) -> 5 | M9: =SUM((AllCourse=Course2)*(AllHole<=9)*(AllScore))/SUM((AllCourse=Course2)*1) -> 45 | N9: =SUM((AllCourse=Course2)*(AllHole=N$5)*(AllScore))/SUM((AllCourse=Course2)*(AllHole=N$5)) -> 6.333333333 | O9: =SUM((AllCourse=Course2)*(AllHole=O$5)*(AllScore))/SUM((AllCourse=Course2)*(AllHole=O$5)) -> 4.666666667 | P9: =SUM((AllCourse=Course2)*(AllHole=P$5)*(AllScore))/SUM((AllCourse=Course2)*(AllHole=P$5)) -> 4 | Q9: =SUM((AllCourse=Course2)*(AllHole=Q$5)*(AllScore))/SUM((AllCourse=Course2)*(AllHole=Q$5)) -> 7.666666667 | R9: =SUM((AllCourse=Course2)*(AllHole=R$5)*(AllScore))/SUM((AllCourse=Course2)*(AllHole=R$5)) -> 3.666666667 | S9: =SUM((AllCourse=Course2)*(AllHole=S$5)*(AllScore))/SUM((AllCourse=Course2)*(AllHole=S$5)) -> 5.666666667 | T9: =SUM((AllCourse=Course2)*(AllHole=T$5)*(AllScore))/SUM((AllCourse=Course2)*(AllHole=T$5)) -> 6 | U9: =SUM((AllCourse=Course2)*(AllHole=U$5)*(AllScore))/SUM((AllCourse=Course2)*(AllHole=U$5)) -> 4 | V9: =SUM((AllCourse=Course2)*(AllHole=V$5)*(AllScore))/SUM((AllCourse=Course2)*(AllHole=V$5)) -> 6.333333333 | W9: =SUM((AllCourse=Course2)*(AllHole>=10)*(AllScore))/SUM((AllCourse=Course2)*1) -> 48.33333333
B10: to par | C10: =C9-C8 -> 22.33333333 | D10: =D9-D8 -> 1.333333333 | E10: -0.3333333333 | F10: 1 | G10: 1 | H10: 0.6666666667 | I10: 2.333333333 | J10: 0.6666666667 | K10: 1.333333333 | L10: 1 | M10: 9 | N10: 2.333333333 | O10: 0.6666666667 | P10: 1 | Q10: 2.666666667 | R10: 0.6666666667 | S10: 1.666666667 | T10: 1 | U10: 1 | V10: 2.333333333 | W10: 13.33333333
B12: Hit Fairway | C12: =SUM((AllPar>3)*(AllCourse=Course2)*(AllFairway=1))/SUM((AllPar>3)*(AllCourse=Course2)) -> 0.5384615385 | D12: =IF(D8>3,SUM((AllCourse=Course2)*(AllHole=D$5)*(AllFairway=1))/SUM((AllCourse=Course2)*(AllHole=D$5)),0) -> 0.6666666667 | E12: =IF(E8>3,SUM((AllCourse=Course2)*(AllHole=E$5)*(AllFairway=1))/SUM((AllCourse=Course2)*(AllHole=E$5)),0) -> 0 | F12: =IF(F8>3,SUM((AllCourse=Course2)*(AllHole=F$5)*(AllFairway=1))/SUM((AllCourse=Course2)*(AllHole=F$5)),0) -> 1 | G12: =IF(G8>3,SUM((AllCourse=Course2)*(AllHole=G$5)*(AllFairway=1))/SUM((AllCourse=Course2)*(AllHole=G$5)),0) -> 0.3333333333 | H12: =IF(H8>3,SUM((AllCourse=Course2)*(AllHole=H$5)*(AllFairway=1))/SUM((AllCourse=Course2)*(AllHole=H$5)),0) -> 1 | I12: =IF(I8>3,SUM((AllCourse=Course2)*(AllHole=I$5)*(AllFairway=1))/SUM((AllCourse=Course2)*(AllHole=I$5)),0) -> 0.6666666667 | J12: =IF(J8>3,SUM((AllCourse=Course2)*(AllHole=J$5)*(AllFairway=1))/SUM((AllCourse=Course2)*(AllHole=J$5)),0) -> 0.3333333333 | K12: =IF(K8>3,SUM((AllCourse=Course2)*(AllHole=K$5)*(AllFairway=1))/SUM((AllCourse=Course2)*(AllHole=K$5)),0) -> 0 | L12: =IF(L8>3,SUM((AllCourse=Course2)*(AllHole=L$5)*(AllFairway=1))/SUM((AllCourse=Course2)*(AllHole=L$5)),0) -> 1 | M12: =SUM((AllHole<=9)*(AllPar>3)*(AllCourse=Course2)*(AllFairway=1))/SUM((AllHole<=9)*(AllPar>3)*(AllCourse=Course2)) -> 0.7142857143 | N12: =IF(N8>3,SUM((AllCourse=Course2)*(AllHole=N$5)*(AllFairway=1))/SUM((AllCourse=Course2)*(AllHole=N$5)),0) -> 0.6666666667 | O12: =IF(O8>3,SUM((AllCourse=Course2)*(AllHole=O$5)*(AllFairway=1))/SUM((AllCourse=Course2)*(AllHole=O$5)),0) -> 0.3333333333 | P12: =IF(P8>3,SUM((AllCourse=Course2)*(AllHole=P$5)*(AllFairway=1))/SUM((AllCourse=Course2)*(AllHole=P$5)),0) -> 0 | Q12: =IF(Q8>3,SUM((AllCourse=Course2)*(AllHole=Q$5)*(AllFairway=1))/SUM((AllCourse=Course2)*(AllHole=Q$5)),0) -> 0.3333333333 | R12: =IF(R8>3,SUM((AllCourse=Course2)*(AllHole=R$5)*(AllFairway=1))/SUM((AllCourse=Course2)*(AllHole=R$5)),0) -> 0 | S12: =IF(S8>3,SUM((AllCourse=Course2)*(AllHole=S$5)*(AllFairway=1))/SUM((AllCourse=Course2)*(AllHole=S$5)),0) -> 0.3333333333 | T12: =IF(T8>3,SUM((AllCourse=Course2)*(AllHole=T$5)*(AllFairway=1))/SUM((AllCourse=Course2)*(AllHole=T$5)),0) -> 0.3333333333 | U12: =IF(U8>3,SUM((AllCourse=Course2)*(AllHole=U$5)*(AllFairway=1))/SUM((AllCourse=Course2)*(AllHole=U$5)),0) -> 0 | V12: =IF(V8>3,SUM((AllCourse=Course2)*(AllHole=V$5)*(AllFairway=1))/SUM((AllCourse=Course2)*(AllHole=V$5)),0) -> 0 | W12: =SUM((AllHole>9)*(AllPar>3)*(AllCourse=Course2)*(AllFairway=1))/SUM((AllHole>9)*(AllPar>3)*(AllCourse=Course2)) -> 0.3333333333
B13: avg score | D13: =IF(D12<>0,SUM((AllCourse=Course2)*(AllHole=D$5)*(AllFairway=1)*(AllScore))/SUM((AllCourse=Course2)*(AllFairway=1)*(AllHole=D$5)),0) -> 6 | E13: =IF(E12<>0,SUM((AllCourse=Course2)*(AllHole=E$5)*(AllFairway=1)*(AllScore))/SUM((AllCourse=Course2)*(AllFairway=1)*(AllHole=E$5)),0) -> 0 | F13: =IF(F12<>0,SUM((AllCourse=Course2)*(AllHole=F$5)*(AllFairway=1)*(AllScore))/SUM((AllCourse=Course2)*(AllFairway=1)*(AllHole=F$5)),0) -> 5 | G13: =IF(G12<>0,SUM((AllCourse=Course2)*(AllHole=G$5)*(AllFairway=1)*(AllScore))/SUM((AllCourse=Course2)*(AllFairway=1)*(AllHole=G$5)),0) -> 6 | H13: =IF(H12<>0,SUM((AllCourse=Course2)*(AllHole=H$5)*(AllFairway=1)*(AllScore))/SUM((AllCourse=Course2)*(AllFairway=1)*(AllHole=H$5)),0) -> 5.666666667 | I13: =IF(I12<>0,SUM((AllCourse=Course2)*(AllHole=I$5)*(AllFairway=1)*(AllScore))/SUM((AllCourse=Course2)*(AllFairway=1)*(AllHole=I$5)),0) -> 6.5 | J13: =IF(J12<>0,SUM((AllCourse=Course2)*(AllHole=J$5)*(AllFairway=1)*(AllScore))/SUM((AllCourse=Course2)*(AllFairway=1)*(AllHole=J$5)),0) -> 5 | K13: =IF(K12<>0,SUM((AllCourse=Course2)*(AllHole=K$5)*(AllFairway=1)*(AllScore))/SUM((AllCourse=Course2)*(AllFairway=1)*(AllHole=K$5)),0) -> 0 | L13: =IF(L12<>0,SUM((AllCourse=Course2)*(AllHole=L$5)*(AllFairway=1)*(AllScore))/SUM((AllCourse=Course2)*(AllFairway=1)*(AllHole=L$5)),0) -> 5 | N13: =IF(N12<>0,SUM((AllCourse=Course2)*(AllHole=N$5)*(AllFairway=1)*(AllScore))/SUM((AllCourse=Course2)*(AllFairway=1)*(AllHole=N$5)),0) -> 6.5 | O13: =IF(O12<>0,SUM((AllCourse=Course2)*(AllHole=O$5)*(AllFairway=1)*(AllScore))/SUM((AllCourse=Course2)*(AllFairway=1)*(AllHole=O$5)),0) -> 4 | P13: =IF(P12<>0,SUM((AllCourse=Course2)*(AllHole=P$5)*(AllFairway=1)*(AllScore))/SUM((AllCourse=Course2)*(AllFairway=1)*(AllHole=P$5)),0) -> 0 | Q13: =IF(Q12<>0,SUM((AllCourse=Course2)*(AllHole=Q$5)*(AllFairway=1)*(AllScore))/SUM((AllCourse=Course2)*(AllFairway=1)*(AllHole=Q$5)),0) -> 7 | R13: =IF(R12<>0,SUM((AllCourse=Course2)*(AllHole=R$5)*(AllFairway=1)*(AllScore))/SUM((AllCourse=Course2)*(AllFairway=1)*(AllHole=R$5)),0) -> 0 | S13: =IF(S12<>0,SUM((AllCourse=Course2)*(AllHole=S$5)*(AllFairway=1)*(AllScore))/SUM((AllCourse=Course2)*(AllFairway=1)*(AllHole=S$5)),0) -> 5 | T13: =IF(T12<>0,SUM((AllCourse=Course2)*(AllHole=T$5)*(AllFairway=1)*(AllScore))/SUM((AllCourse=Course2)*(AllFairway=1)*(AllHole=T$5)),0) -> 7 | U13: =IF(U12<>0,SUM((AllCourse=Course2)*(AllHole=U$5)*(AllFairway=1)*(AllScore))/SUM((AllCourse=Course2)*(AllFairway=1)*(AllHole=U$5)),0) -> 0 | V13: =IF(V12<>0,SUM((AllCourse=Course2)*(AllHole=V$5)*(AllFairway=1)*(AllScore))/SUM((AllCourse=Course2)*(AllFairway=1)*(AllHole=V$5)),0) -> 0
B14: to par | C14: =SUM((AllPar>3)*(AllCourse=Course2)*(AllFairway=1)*(AllToPar))/SUM((AllPar>3)*(AllCourse=Course2)*(AllFairway=1)) -> 1.380952381 | D14: =IF(D12<>0,D13-D8,"") -> 2 | E14: =IF(E12<>0,E13-E8,"") ->  | F14: 1 | G14: 2 | H14: 0.6666666667 | I14: 2.5 | J14: 0 | L14: 1 | M14: =SUM((AllHole<=9)*(AllPar>3)*(AllCourse=Course2)*(AllFairway=1)*(AllToPar))/SUM((AllHole<=9)*(AllPar>3)*(AllCourse=Course2)*(AllFairway=1)) -> 1.266666667 | N14: 2.5 | O14: 0 | Q14: 2 | S14: 1 | T14: 2 | W14: =SUM((AllHole>9)*(AllPar>3)*(AllCourse=Course2)*(AllFairway=1)*(AllToPar))/SUM((AllHole>9)*(AllPar>3)*(AllCourse=Course2)*(AllFairway=1)) -> 1.666666667
B16: Miss Fairway | C16: =IF(C8>3,1-C12,0) -> 0.4615384615 | D16: =IF(D8>3,1-D12,0) -> 0.3333333333 | E16: =IF(E8>3,1-E12,0) -> 0 | F16: =IF(F8>3,1-F12,0) -> 0 | G16: =IF(G8>3,1-G12,0) -> 0.6666666667 | H16: =IF(H8>3,1-H12,0) -> 0 | I16: =IF(I8>3,1-I12,0) -> 0.3333333333 | J16: =IF(J8>3,1-J12,0) -> 0.6666666667 | K16: =IF(K8>3,1-K12,0) -> 0 | L16: =IF(L8>3,1-L12,0) -> 0 | M16: =IF(M8>3,1-M12,0) -> 0.2857142857 | N16: =IF(N8>3,1-N12,0) -> 0.3333333333 | O16: =IF(O8>3,1-O12,0) -> 0.6666666667 | P16: =IF(P8>3,1-P12,0) -> 0 | Q16: =IF(Q8>3,1-Q12,0) -> 0.6666666667 | R16: =IF(R8>3,1-R12,0) -> 0 | S16: =IF(S8>3,1-S12,0) -> 0.6666666667 | T16: =IF(T8>3,1-T12,0) -> 0.6666666667 | U16: =IF(U8>3,1-U12,0) -> 0 | V16: =IF(V8>3,1-V12,0) -> 1 | W16: =IF(W8>3,1-W12,0) -> 0.6666666667
B17: avg score | D17: =IF(D16<>0,SUM((AllCourse=Course2)*(AllHole=D$5)*(AllFairway=0)*(AllScore))/SUM((AllCourse=Course2)*(AllFairway=0)*(AllHole=D$5)),0) -> 4 | E17: =IF(E16<>0,SUM((AllCourse=Course2)*(AllHole=E$5)*(AllFairway=0)*(AllScore))/SUM((AllCourse=Course2)*(AllFairway=0)*(AllHole=E$5)),0) -> 0 | F17: =IF(F16<>0,SUM((AllCourse=Course2)*(AllHole=F$5)*(AllFairway=0)*(AllScore))/SUM((AllCourse=Course2)*(AllFairway=0)*(AllHole=F$5)),0) -> 0 | G17: =IF(G16<>0,SUM((AllCourse=Course2)*(AllHole=G$5)*(AllFairway=0)*(AllScore))/SUM((AllCourse=Course2)*(AllFairway=0)*(AllHole=G$5)),0) -> 4.5 | H17: =IF(H16<>0,SUM((AllCourse=Course2)*(AllHole=H$5)*(AllFairway=0)*(AllScore))/SUM((AllCourse=Course2)*(AllFairway=0)*(AllHole=H$5)),0) -> 0 | I17: =IF(I16<>0,SUM((AllCourse=Course2)*(AllHole=I$5)*(AllFairway=0)*(AllScore))/SUM((AllCourse=Course2)*(AllFairway=0)*(AllHole=I$5)),0) -> 6 | J17: =IF(J16<>0,SUM((AllCourse=Course2)*(AllHole=J$5)*(AllFairway=0)*(AllScore))/SUM((AllCourse=Course2)*(AllFairway=0)*(AllHole=J$5)),0) -> 6 | K17: =IF(K16<>0,SUM((AllCourse=Course2)*(AllHole=K$5)*(AllFairway=0)*(AllScore))/SUM((AllCourse=Course2)*(AllFairway=0)*(AllHole=K$5)),0) -> 0 | L17: =IF(L16<>0,SUM((AllCourse=Course2)*(AllHole=L$5)*(AllFairway=0)*(AllScore))/SUM((AllCourse=Course2)*(AllFairway=0)*(AllHole=L$5)),0) -> 0 | N17: =IF(N16<>0,SUM((AllCourse=Course2)*(AllHole=N$5)*(AllFairway=0)*(AllScore))/SUM((AllCourse=Course2)*(AllFairway=0)*(AllHole=N$5)),0) -> 6 | O17: =IF(O16<>0,SUM((AllCourse=Course2)*(AllHole=O$5)*(AllFairway=0)*(AllScore))/SUM((AllCourse=Course2)*(AllFairway=0)*(AllHole=O$5)),0) -> 5 | P17: =IF(P16<>0,SUM((AllCourse=Course2)*(AllHole=P$5)*(AllFairway=0)*(AllScore))/SUM((AllCourse=Course2)*(AllFairway=0)*(AllHole=P$5)),0) -> 0 | Q17: =IF(Q16<>0,SUM((AllCourse=Course2)*(AllHole=Q$5)*(AllFairway=0)*(AllScore))/SUM((AllCourse=Course2)*(AllFairway=0)*(AllHole=Q$5)),0) -> 8 | R17: =IF(R16<>0,SUM((AllCourse=Course2)*(AllHole=R$5)*(AllFairway=0)*(AllScore))/SUM((AllCourse=Course2)*(AllFairway=0)*(AllHole=R$5)),0) -> 0 | S17: =IF(S16<>0,SUM((AllCourse=Course2)*(AllHole=S$5)*(AllFairway=0)*(AllScore))/SUM((AllCourse=Course2)*(AllFairway=0)*(AllHole=S$5)),0) -> 6 | T17: =IF(T16<>0,SUM((AllCourse=Course2)*(AllHole=T$5)*(AllFairway=0)*(AllScore))/SUM((AllCourse=Course2)*(AllFairway=0)*(AllHole=T$5)),0) -> 5.5 | U17: =IF(U16<>0,SUM((AllCourse=Course2)*(AllHole=U$5)*(AllFairway=0)*(AllScore))/SUM((AllCourse=Course2)*(AllFairway=0)*(AllHole=U$5)),0) -> 0 | V17: =IF(V16<>0,SUM((AllCourse=Course2)*(AllHole=V$5)*(AllFairway=0)*(AllScore))/SUM((AllCourse=Course2)*(AllFairway=0)*(AllHole=V$5)),0) -> 6.333333333
B18: to par | C18: =SUM((AllPar>3)*(AllCourse=Course2)*(AllFairway=0)*(AllToPar))/SUM((AllPar>3)*(AllCourse=Course2)*(AllFairway=0)) -> 1.5 | D18: =IF(D16<>0,D17-D8,"") -> 0 | E18: =IF(E16<>0,E17-E8,"") ->  | G18: 0.5 | I18: 2 | J18: 1 | M18: =SUM((AllHole<=9)*(AllPar>3)*(AllCourse=Course2)*(AllFairway=0)*(AllToPar))/SUM((AllHole<=9)*(AllPar>3)*(AllCourse=Course2)*(AllFairway=0)) -> 0.8333333333 | N18: 2 | O18: 1 | Q18: 3 | S18: 2 | T18: 0.5 | V18: 2.333333333 | W18: =SUM((AllHole>9)*(AllPar>3)*(AllCourse=Course2)*(AllFairway=0)*(AllToPar))/SUM((AllHole>9)*(AllPar>3)*(AllCourse=Course2)*(AllFairway=0)) -> 1.833333333
B20: "Penalty" for miss | C20: =IF(OR(C14="",C18=""),"",C18-C14) -> 0.119047619 | D20: =IF(OR(D14="",D18=""),"",D18-D14) -> -2 | E20: =IF(OR(E14="",E18=""),"",E18-E14) ->  | G20: -1.5 | I20: -0.5 | J20: 1 | M20: -0.4333333333 | N20: -0.5 | O20: 1 | Q20: 1 | S20: 1 | T20: -1.5 | W20: 0.1666666667
B22: Avg Putts | C22: =SUM((AllCourse=Course2)*(AllPutt))/$K$3 -> 36 | D22: =SUM((AllCourse=Course2)*(AllHole=D$5)*(AllPutt))/SUM((AllCourse=Course2)*(AllHole=D$5)) -> 2 | E22: =SUM((AllCourse=Course2)*(AllHole=E$5)*(AllPutt))/SUM((AllCourse=Course2)*(AllHole=E$5)) -> 1 | F22: =SUM((AllCourse=Course2)*(AllHole=F$5)*(AllPutt))/SUM((AllCourse=Course2)*(AllHole=F$5)) -> 1.666666667 | G22: =SUM((AllCourse=Course2)*(AllHole=G$5)*(AllPutt))/SUM((AllCourse=Course2)*(AllHole=G$5)) -> 2 | H22: =SUM((AllCourse=Course2)*(AllHole=H$5)*(AllPutt))/SUM((AllCourse=Course2)*(AllHole=H$5)) -> 1.666666667 | I22: =SUM((AllCourse=Course2)*(AllHole=I$5)*(AllPutt))/SUM((AllCourse=Course2)*(AllHole=I$5)) -> 2.333333333 | J22: =SUM((AllCourse=Course2)*(AllHole=J$5)*(AllPutt))/SUM((AllCourse=Course2)*(AllHole=J$5)) -> 2 | K22: =SUM((AllCourse=Course2)*(AllHole=K$5)*(AllPutt))/SUM((AllCourse=Course2)*(AllHole=K$5)) -> 1.666666667 | L22: =SUM((AllCourse=Course2)*(AllHole=L$5)*(AllPutt))/SUM((AllCourse=Course2)*(AllHole=L$5)) -> 2.333333333 | M22: =SUM((AllCourse=Course2)*(AllHole<=9)*(AllPutt))/K3 -> 16.66666667 | N22: =SUM((AllCourse=Course2)*(AllHole=N$5)*(AllPutt))/SUM((AllCourse=Course2)*(AllHole=N$5)) -> 2 | O22: =SUM((AllCourse=Course2)*(AllHole=O$5)*(AllPutt))/SUM((AllCourse=Course2)*(AllHole=O$5)) -> 1.666666667 | P22: =SUM((AllCourse=Course2)*(AllHole=P$5)*(AllPutt))/SUM((AllCourse=Course2)*(AllHole=P$5)) -> 2.333333333 | Q22: =SUM((AllCourse=Course2)*(AllHole=Q$5)*(AllPutt))/SUM((AllCourse=Course2)*(AllHole=Q$5)) -> 2.333333333 | R22: =SUM((AllCourse=Course2)*(AllHole=R$5)*(AllPutt))/SUM((AllCourse=Course2)*(AllHole=R$5)) -> 2 | S22: =SUM((AllCourse=Course2)*(AllHole=S$5)*(AllPutt))/SUM((AllCourse=Course2)*(AllHole=S$5)) -> 2.333333333 | T22: =SUM((AllCourse=Course2)*(AllHole=T$5)*(AllPutt))/SUM((AllCourse=Course2)*(AllHole=T$5)) -> 2 | U22: =SUM((AllCourse=Course2)*(AllHole=U$5)*(AllPutt))/SUM((AllCourse=Course2)*(AllHole=U$5)) -> 2.333333333 | V22: =SUM((AllCourse=Course2)*(AllHole=V$5)*(AllPutt))/SUM((AllCourse=Course2)*(AllHole=V$5)) -> 2.333333333 | W22: =SUM((AllCourse=Course2)*(AllHole>=10)*(AllPutt))/K3 -> 19.33333333
B23: per GIR | C23: =IF(SUM((AllCourse=Course2)*(AllGIR=0))=0,0,SUM((AllCourse=Course2)*(AllGIR=0)*(AllPutt))/SUM((AllCourse=Course2)*(AllGIR=0))) -> 2.3 | D23: =IF(SUM((AllCourse=Course2)*(AllGIR=0)*(AllHole=D$5))=0,0,SUM((AllCourse=Course2)*(AllHole=D$5)*(AllGIR=0)*(AllPutt))/SUM((AllCourse=Course2)*(AllGIR=0)*(AllHole=D$5))) -> 0 | E23: =IF(SUM((AllCourse=Course2)*(AllGIR=0)*(AllHole=E$5))=0,0,SUM((AllCourse=Course2)*(AllHole=E$5)*(AllGIR=0)*(AllPutt))/SUM((AllCourse=Course2)*(AllGIR=0)*(AllHole=E$5))) -> 1 | F23: =IF(SUM((AllCourse=Course2)*(AllGIR=0)*(AllHole=F$5))=0,0,SUM((AllCourse=Course2)*(AllHole=F$5)*(AllGIR=0)*(AllPutt))/SUM((AllCourse=Course2)*(AllGIR=0)*(AllHole=F$5))) -> 0 | G23: =IF(SUM((AllCourse=Course2)*(AllGIR=0)*(AllHole=G$5))=0,0,SUM((AllCourse=Course2)*(AllHole=G$5)*(AllGIR=0)*(AllPutt))/SUM((AllCourse=Course2)*(AllGIR=0)*(AllHole=G$5))) -> 2 | H23: =IF(SUM((AllCourse=Course2)*(AllGIR=0)*(AllHole=H$5))=0,0,SUM((AllCourse=Course2)*(AllHole=H$5)*(AllGIR=0)*(AllPutt))/SUM((AllCourse=Course2)*(AllGIR=0)*(AllHole=H$5))) -> 0 | I23: =IF(SUM((AllCourse=Course2)*(AllGIR=0)*(AllHole=I$5))=0,0,SUM((AllCourse=Course2)*(AllHole=I$5)*(AllGIR=0)*(AllPutt))/SUM((AllCourse=Course2)*(AllGIR=0)*(AllHole=I$5))) -> 0 | J23: =IF(SUM((AllCourse=Course2)*(AllGIR=0)*(AllHole=J$5))=0,0,SUM((AllCourse=Course2)*(AllHole=J$5)*(AllGIR=0)*(AllPutt))/SUM((AllCourse=Course2)*(AllGIR=0)*(AllHole=J$5))) -> 2 | K23: =IF(SUM((AllCourse=Course2)*(AllGIR=0)*(AllHole=K$5))=0,0,SUM((AllCourse=Course2)*(AllHole=K$5)*(AllGIR=0)*(AllPutt))/SUM((AllCourse=Course2)*(AllGIR=0)*(AllHole=K$5))) -> 0 | L23: =IF(SUM((AllCourse=Course2)*(AllGIR=0)*(AllHole=L$5))=0,0,SUM((AllCourse=Course2)*(AllHole=L$5)*(AllGIR=0)*(AllPutt))/SUM((AllCourse=Course2)*(AllGIR=0)*(AllHole=L$5))) -> 3 | N23: =IF(SUM((AllCourse=Course2)*(AllGIR=0)*(AllHole=N$5))=0,0,SUM((AllCourse=Course2)*(AllHole=N$5)*(AllGIR=0)*(AllPutt))/SUM((AllCourse=Course2)*(AllGIR=0)*(AllHole=N$5))) -> 0 | O23: =IF(SUM((AllCourse=Course2)*(AllGIR=0)*(AllHole=O$5))=0,0,SUM((AllCourse=Course2)*(AllHole=O$5)*(AllGIR=0)*(AllPutt))/SUM((AllCourse=Course2)*(AllGIR=0)*(AllHole=O$5))) -> 2 | P23: =IF(SUM((AllCourse=Course2)*(AllGIR=0)*(AllHole=P$5))=0,0,SUM((AllCourse=Course2)*(AllHole=P$5)*(AllGIR=0)*(AllPutt))/SUM((AllCourse=Course2)*(AllGIR=0)*(AllHole=P$5))) -> 2.5 | Q23: =IF(SUM((AllCourse=Course2)*(AllGIR=0)*(AllHole=Q$5))=0,0,SUM((AllCourse=Course2)*(AllHole=Q$5)*(AllGIR=0)*(AllPutt))/SUM((AllCourse=Course2)*(AllGIR=0)*(AllHole=Q$5))) -> 0 | R23: =IF(SUM((AllCourse=Course2)*(AllGIR=0)*(AllHole=R$5))=0,0,SUM((AllCourse=Course2)*(AllHole=R$5)*(AllGIR=0)*(AllPutt))/SUM((AllCourse=Course2)*(AllGIR=0)*(AllHole=R$5))) -> 3 | S23: =IF(SUM((AllCourse=Course2)*(AllGIR=0)*(AllHole=S$5))=0,0,SUM((AllCourse=Course2)*(AllHole=S$5)*(AllGIR=0)*(AllPutt))/SUM((AllCourse=Course2)*(AllGIR=0)*(AllHole=S$5))) -> 0 | T23: =IF(SUM((AllCourse=Course2)*(AllGIR=0)*(AllHole=T$5))=0,0,SUM((AllCourse=Course2)*(AllHole=T$5)*(AllGIR=0)*(AllPutt))/SUM((AllCourse=Course2)*(AllGIR=0)*(AllHole=T$5))) -> 2 | U23: =IF(SUM((AllCourse=Course2)*(AllGIR=0)*(AllHole=U$5))=0,0,SUM((AllCourse=Course2)*(AllHole=U$5)*(AllGIR=0)*(AllPutt))/SUM((AllCourse=Course2)*(AllGIR=0)*(AllHole=U$5))) -> 3 | V23: =IF(SUM((AllCourse=Course2)*(AllGIR=0)*(AllHole=V$5))=0,0,SUM((AllCourse=Course2)*(AllHole=V$5)*(AllGIR=0)*(AllPutt))/SUM((AllCourse=Course2)*(AllGIR=0)*(AllHole=V$5))) -> 0
B24: per non-GIR | C24: =IF(SUM((AllCourse=Course2)*(AllGIR>0))=0,0,SUM((AllCourse=Course2)*(AllGIR>0)*(AllPutt))/SUM((AllCourse=Course2)*(AllGIR>0))) -> 1.931818182 | D24: =IF(SUM((AllCourse=Course2)*(AllGIR>0)*(AllHole=D$5))=0,0,SUM((AllCourse=Course2)*(AllHole=D$5)*(AllGIR>0)*(AllPutt))/SUM((AllCourse=Course2)*(AllGIR>0)*(AllHole=D$5))) -> 2 | E24: =IF(SUM((AllCourse=Course2)*(AllGIR>0)*(AllHole=E$5))=0,0,SUM((AllCourse=Course2)*(AllHole=E$5)*(AllGIR>0)*(AllPutt))/SUM((AllCourse=Course2)*(AllGIR>0)*(AllHole=E$5))) -> 1 | F24: =IF(SUM((AllCourse=Course2)*(AllGIR>0)*(AllHole=F$5))=0,0,SUM((AllCourse=Course2)*(AllHole=F$5)*(AllGIR>0)*(AllPutt))/SUM((AllCourse=Course2)*(AllGIR>0)*(AllHole=F$5))) -> 1.666666667 | G24: =IF(SUM((AllCourse=Course2)*(AllGIR>0)*(AllHole=G$5))=0,0,SUM((AllCourse=Course2)*(AllHole=G$5)*(AllGIR>0)*(AllPutt))/SUM((AllCourse=Course2)*(AllGIR>0)*(AllHole=G$5))) -> 2 | H24: =IF(SUM((AllCourse=Course2)*(AllGIR>0)*(AllHole=H$5))=0,0,SUM((AllCourse=Course2)*(AllHole=H$5)*(AllGIR>0)*(AllPutt))/SUM((AllCourse=Course2)*(AllGIR>0)*(AllHole=H$5))) -> 1.666666667 | I24: =IF(SUM((AllCourse=Course2)*(AllGIR>0)*(AllHole=I$5))=0,0,SUM((AllCourse=Course2)*(AllHole=I$5)*(AllGIR>0)*(AllPutt))/SUM((AllCourse=Course2)*(AllGIR>0)*(AllHole=I$5))) -> 2.333333333 | J24: =IF(SUM((AllCourse=Course2)*(AllGIR>0)*(AllHole=J$5))=0,0,SUM((AllCourse=Course2)*(AllHole=J$5)*(AllGIR>0)*(AllPutt))/SUM((AllCourse=Course2)*(AllGIR>0)*(AllHole=J$5))) -> 2 | K24: =IF(SUM((AllCourse=Course2)*(AllGIR>0)*(AllHole=K$5))=0,0,SUM((AllCourse=Course2)*(AllHole=K$5)*(AllGIR>0)*(AllPutt))/SUM((AllCourse=Course2)*(AllGIR>0)*(AllHole=K$5))) -> 1.666666667 | L24: =IF(SUM((AllCourse=Course2)*(AllGIR>0)*(AllHole=L$5))=0,0,SUM((AllCourse=Course2)*(AllHole=L$5)*(AllGIR>0)*(AllPutt))/SUM((AllCourse=Course2)*(AllGIR>0)*(AllHole=L$5))) -> 2 | N24: =IF(SUM((AllCourse=Course2)*(AllGIR>0)*(AllHole=N$5))=0,0,SUM((AllCourse=Course2)*(AllHole=N$5)*(AllGIR>0)*(AllPutt))/SUM((AllCourse=Course2)*(AllGIR>0)*(AllHole=N$5))) -> 2 | O24: =IF(SUM((AllCourse=Course2)*(AllGIR>0)*(AllHole=O$5))=0,0,SUM((AllCourse=Course2)*(AllHole=O$5)*(AllGIR>0)*(AllPutt))/SUM((AllCourse=Course2)*(AllGIR>0)*(AllHole=O$5))) -> 1.5 | P24: =IF(SUM((AllCourse=Course2)*(AllGIR>0)*(AllHole=P$5))=0,0,SUM((AllCourse=Course2)*(AllHole=P$5)*(AllGIR>0)*(AllPutt))/SUM((AllCourse=Course2)*(AllGIR>0)*(AllHole=P$5))) -> 2 | Q24: =IF(SUM((AllCourse=Course2)*(AllGIR>0)*(AllHole=Q$5))=0,0,SUM((AllCourse=Course2)*(AllHole=Q$5)*(AllGIR>0)*(AllPutt))/SUM((AllCourse=Course2)*(AllGIR>0)*(AllHole=Q$5))) -> 2.333333333 | R24: =IF(SUM((AllCourse=Course2)*(AllGIR>0)*(AllHole=R$5))=0,0,SUM((AllCourse=Course2)*(AllHole=R$5)*(AllGIR>0)*(AllPutt))/SUM((AllCourse=Course2)*(AllGIR>0)*(AllHole=R$5))) -> 1.5 | S24: =IF(SUM((AllCourse=Course2)*(AllGIR>0)*(AllHole=S$5))=0,0,SUM((AllCourse=Course2)*(AllHole=S$5)*(AllGIR>0)*(AllPutt))/SUM((AllCourse=Course2)*(AllGIR>0)*(AllHole=S$5))) -> 2.333333333 | T24: =IF(SUM((AllCourse=Course2)*(AllGIR>0)*(AllHole=T$5))=0,0,SUM((AllCourse=Course2)*(AllHole=T$5)*(AllGIR>0)*(AllPutt))/SUM((AllCourse=Course2)*(AllGIR>0)*(AllHole=T$5))) -> 2 | U24: =IF(SUM((AllCourse=Course2)*(AllGIR>0)*(AllHole=U$5))=0,0,SUM((AllCourse=Course2)*(AllHole=U$5)*(AllGIR>0)*(AllPutt))/SUM((AllCourse=Course2)*(AllGIR>0)*(AllHole=U$5))) -> 2 | V24: =IF(SUM((AllCourse=Course2)*(AllGIR>0)*(AllHole=V$5))=0,0,SUM((AllCourse=Course2)*(AllHole=V$5)*(AllGIR>0)*(AllPutt))/SUM((AllCourse=Course2)*(AllGIR>0)*(AllHole=V$5))) -> 2.333333333
B26: Miss Drive - Freq | Y26: To Par
A27: L | B27: Left | C27: =SUM((AllCourse=Course2)*IF(ISERR(SEARCH($A27,AllMissDrive)),0,1)*(AllPar>3))/SUM((AllCourse=Course2)*(AllPar>3)) -> 0.1282051282 | D27: =IF(D$8>3,SUM((AllCourse=Course2)*(AllHole=D$5)*IF(ISERR(SEARCH($A27,AllMissDrive)),0,1))/$K$3,"") -> 0.3333333333 | E27: =IF(E$8>3,SUM((AllCourse=Course2)*(AllHole=E$5)*IF(ISERR(SEARCH($A27,AllMissDrive)),0,1))/$K$3,"") ->  | F27: =IF(F$8>3,SUM((AllCourse=Course2)*(AllHole=F$5)*IF(ISERR(SEARCH($A27,AllMissDrive)),0,1))/$K$3,"") -> 0 | G27: =IF(G$8>3,SUM((AllCourse=Course2)*(AllHole=G$5)*IF(ISERR(SEARCH($A27,AllMissDrive)),0,1))/$K$3,"") -> 0 | H27: =IF(H$8>3,SUM((AllCourse=Course2)*(AllHole=H$5)*IF(ISERR(SEARCH($A27,AllMissDrive)),0,1))/$K$3,"") -> 0 | I27: =IF(I$8>3,SUM((AllCourse=Course2)*(AllHole=I$5)*IF(ISERR(SEARCH($A27,AllMissDrive)),0,1))/$K$3,"") -> 0.3333333333 | J27: =IF(J$8>3,SUM((AllCourse=Course2)*(AllHole=J$5)*IF(ISERR(SEARCH($A27,AllMissDrive)),0,1))/$K$3,"") -> 0 | K27: =IF(K$8>3,SUM((AllCourse=Course2)*(AllHole=K$5)*IF(ISERR(SEARCH($A27,AllMissDrive)),0,1))/$K$3,"") ->  | L27: =IF(L$8>3,SUM((AllCourse=Course2)*(AllHole=L$5)*IF(ISERR(SEARCH($A27,AllMissDrive)),0,1))/$K$3,"") -> 0 | N27: =IF(N$8>3,SUM((AllCourse=Course2)*(AllHole=N$5)*IF(ISERR(SEARCH($A27,AllMissDrive)),0,1))/$K$3,"") -> 0.3333333333 | O27: =IF(O$8>3,SUM((AllCourse=Course2)*(AllHole=O$5)*IF(ISERR(SEARCH($A27,AllMissDrive)),0,1))/$K$3,"") -> 0.6666666667 | P27: =IF(P$8>3,SUM((AllCourse=Course2)*(AllHole=P$5)*IF(ISERR(SEARCH($A27,AllMissDrive)),0,1))/$K$3,"") ->  | Q27: =IF(Q$8>3,SUM((AllCourse=Course2)*(AllHole=Q$5)*IF(ISERR(SEARCH($A27,AllMissDrive)),0,1))/$K$3,"") -> 0 | R27: =IF(R$8>3,SUM((AllCourse=Course2)*(AllHole=R$5)*IF(ISERR(SEARCH($A27,AllMissDrive)),0,1))/$K$3,"") ->  | S27: =IF(S$8>3,SUM((AllCourse=Course2)*(AllHole=S$5)*IF(ISERR(SEARCH($A27,AllMissDrive)),0,1))/$K$3,"") -> 0 | T27: =IF(T$8>3,SUM((AllCourse=Course2)*(AllHole=T$5)*IF(ISERR(SEARCH($A27,AllMissDrive)),0,1))/$K$3,"") -> 0 | U27: =IF(U$8>3,SUM((AllCourse=Course2)*(AllHole=U$5)*IF(ISERR(SEARCH($A27,AllMissDrive)),0,1))/$K$3,"") ->  | V27: =IF(V$8>3,SUM((AllCourse=Course2)*(AllHole=V$5)*IF(ISERR(SEARCH($A27,AllMissDrive)),0,1))/$K$3,"") -> 0 | Y27: =SUM((AllCourse=Course2)*IF(ISERR(SEARCH($A27,AllMissDrive)),0,1)*AllToPar)/SUM((AllCourse=Course2)*IF(ISERR(SEARCH($A27,AllMissDrive)),0,1)*(AllPar>3)) -> 0.8
A28: R | B28: Right | C28: =SUM((AllCourse=Course2)*IF(ISERR(SEARCH($A28,AllMissDrive)),0,1)*(AllPar>3))/SUM((AllCourse=Course2)*(AllPar>3)) -> 0.2051282051 | D28: =IF(D$8>3,SUM((AllCourse=Course2)*(AllHole=D$5)*IF(ISERR(SEARCH($A28,AllMissDrive)),0,1))/$K$3,"") -> 0 | E28: =IF(E$8>3,SUM((AllCourse=Course2)*(AllHole=E$5)*IF(ISERR(SEARCH($A28,AllMissDrive)),0,1))/$K$3,"") ->  | F28: =IF(F$8>3,SUM((AllCourse=Course2)*(AllHole=F$5)*IF(ISERR(SEARCH($A28,AllMissDrive)),0,1))/$K$3,"") -> 0 | G28: =IF(G$8>3,SUM((AllCourse=Course2)*(AllHole=G$5)*IF(ISERR(SEARCH($A28,AllMissDrive)),0,1))/$K$3,"") -> 0.6666666667 | H28: =IF(H$8>3,SUM((AllCourse=Course2)*(AllHole=H$5)*IF(ISERR(SEARCH($A28,AllMissDrive)),0,1))/$K$3,"") -> 0 | I28: =IF(I$8>3,SUM((AllCourse=Course2)*(AllHole=I$5)*IF(ISERR(SEARCH($A28,AllMissDrive)),0,1))/$K$3,"") -> 0 | J28: =IF(J$8>3,SUM((AllCourse=Course2)*(AllHole=J$5)*IF(ISERR(SEARCH($A28,AllMissDrive)),0,1))/$K$3,"") -> 0.3333333333 | K28: =IF(K$8>3,SUM((AllCourse=Course2)*(AllHole=K$5)*IF(ISERR(SEARCH($A28,AllMissDrive)),0,1))/$K$3,"") ->  | L28: =IF(L$8>3,SUM((AllCourse=Course2)*(AllHole=L$5)*IF(ISERR(SEARCH($A28,AllMissDrive)),0,1))/$K$3,"") -> 0 | N28: =IF(N$8>3,SUM((AllCourse=Course2)*(AllHole=N$5)*IF(ISERR(SEARCH($A28,AllMissDrive)),0,1))/$K$3,"") -> 0 | O28: =IF(O$8>3,SUM((AllCourse=Course2)*(AllHole=O$5)*IF(ISERR(SEARCH($A28,AllMissDrive)),0,1))/$K$3,"") -> 0 | P28: =IF(P$8>3,SUM((AllCourse=Course2)*(AllHole=P$5)*IF(ISERR(SEARCH($A28,AllMissDrive)),0,1))/$K$3,"") ->  | Q28: =IF(Q$8>3,SUM((AllCourse=Course2)*(AllHole=Q$5)*IF(ISERR(SEARCH($A28,AllMissDrive)),0,1))/$K$3,"") -> 0.3333333333 | R28: =IF(R$8>3,SUM((AllCourse=Course2)*(AllHole=R$5)*IF(ISERR(SEARCH($A28,AllMissDrive)),0,1))/$K$3,"") ->  | S28: =IF(S$8>3,SUM((AllCourse=Course2)*(AllHole=S$5)*IF(ISERR(SEARCH($A28,AllMissDrive)),0,1))/$K$3,"") -> 0.3333333333 | T28: =IF(T$8>3,SUM((AllCourse=Course2)*(AllHole=T$5)*IF(ISERR(SEARCH($A28,AllMissDrive)),0,1))/$K$3,"") -> 0.6666666667 | U28: =IF(U$8>3,SUM((AllCourse=Course2)*(AllHole=U$5)*IF(ISERR(SEARCH($A28,AllMissDrive)),0,1))/$K$3,"") ->  | V28: =IF(V$8>3,SUM((AllCourse=Course2)*(AllHole=V$5)*IF(ISERR(SEARCH($A28,AllMissDrive)),0,1))/$K$3,"") -> 0.3333333333 | Y28: =SUM((AllCourse=Course2)*IF(ISERR(SEARCH($A28,AllMissDrive)),0,1)*AllToPar)/SUM((AllCourse=Course2)*IF(ISERR(SEARCH($A28,AllMissDrive)),0,1)*(AllPar>3)) -> 1.375
A29: X | B29: Shank | C29: =SUM((AllCourse=Course2)*IF(ISERR(SEARCH($A29,AllMissDrive)),0,1)*(AllPar>3))/SUM((AllCourse=Course2)*(AllPar>3)) -> 0.1282051282 | D29: =IF(D$8>3,SUM((AllCourse=Course2)*(AllHole=D$5)*IF(ISERR(SEARCH($A29,AllMissDrive)),0,1))/$K$3,"") -> 0 | E29: =IF(E$8>3,SUM((AllCourse=Course2)*(AllHole=E$5)*IF(ISERR(SEARCH($A29,AllMissDrive)),0,1))/$K$3,"") ->  | F29: =IF(F$8>3,SUM((AllCourse=Course2)*(AllHole=F$5)*IF(ISERR(SEARCH($A29,AllMissDrive)),0,1))/$K$3,"") -> 0 | G29: =IF(G$8>3,SUM((AllCourse=Course2)*(AllHole=G$5)*IF(ISERR(SEARCH($A29,AllMissDrive)),0,1))/$K$3,"") -> 0 | H29: =IF(H$8>3,SUM((AllCourse=Course2)*(AllHole=H$5)*IF(ISERR(SEARCH($A29,AllMissDrive)),0,1))/$K$3,"") -> 0 | I29: =IF(I$8>3,SUM((AllCourse=Course2)*(AllHole=I$5)*IF(ISERR(SEARCH($A29,AllMissDrive)),0,1))/$K$3,"") -> 0 | J29: =IF(J$8>3,SUM((AllCourse=Course2)*(AllHole=J$5)*IF(ISERR(SEARCH($A29,AllMissDrive)),0,1))/$K$3,"") -> 0.3333333333 | K29: =IF(K$8>3,SUM((AllCourse=Course2)*(AllHole=K$5)*IF(ISERR(SEARCH($A29,AllMissDrive)),0,1))/$K$3,"") ->  | L29: =IF(L$8>3,SUM((AllCourse=Course2)*(AllHole=L$5)*IF(ISERR(SEARCH($A29,AllMissDrive)),0,1))/$K$3,"") -> 0 | N29: =IF(N$8>3,SUM((AllCourse=Course2)*(AllHole=N$5)*IF(ISERR(SEARCH($A29,AllMissDrive)),0,1))/$K$3,"") -> 0.3333333333 | O29: =IF(O$8>3,SUM((AllCourse=Course2)*(AllHole=O$5)*IF(ISERR(SEARCH($A29,AllMissDrive)),0,1))/$K$3,"") -> 0.3333333333 | P29: =IF(P$8>3,SUM((AllCourse=Course2)*(AllHole=P$5)*IF(ISERR(SEARCH($A29,AllMissDrive)),0,1))/$K$3,"") ->  | Q29: =IF(Q$8>3,SUM((AllCourse=Course2)*(AllHole=Q$5)*IF(ISERR(SEARCH($A29,AllMissDrive)),0,1))/$K$3,"") -> 0.3333333333 | R29: =IF(R$8>3,SUM((AllCourse=Course2)*(AllHole=R$5)*IF(ISERR(SEARCH($A29,AllMissDrive)),0,1))/$K$3,"") ->  | S29: =IF(S$8>3,SUM((AllCourse=Course2)*(AllHole=S$5)*IF(ISERR(SEARCH($A29,AllMissDrive)),0,1))/$K$3,"") -> 0 | T29: =IF(T$8>3,SUM((AllCourse=Course2)*(AllHole=T$5)*IF(ISERR(SEARCH($A29,AllMissDrive)),0,1))/$K$3,"") -> 0 | U29: =IF(U$8>3,SUM((AllCourse=Course2)*(AllHole=U$5)*IF(ISERR(SEARCH($A29,AllMissDrive)),0,1))/$K$3,"") ->  | V29: =IF(V$8>3,SUM((AllCourse=Course2)*(AllHole=V$5)*IF(ISERR(SEARCH($A29,AllMissDrive)),0,1))/$K$3,"") -> 0.3333333333 | Y29: =SUM((AllCourse=Course2)*IF(ISERR(SEARCH($A29,AllMissDrive)),0,1)*AllToPar)/SUM((AllCourse=Course2)*IF(ISERR(SEARCH($A29,AllMissDrive)),0,1)*(AllPar>3)) -> 2.2
B30: No Miss | C30: =SUM((AllCourse=Course2)*(AllPar>3)*ISBLANK(AllMissDrive))/SUM((AllCourse=Course2)*(AllPar>3)) -> 0.5128205128 | Y30: =SUM((AllCourse=Course2)*IF(ISERR(SEARCH($A30,AllMissDrive)),0,1)*AllToPar)/SUM((AllCourse=Course2)*IF(ISERR(SEARCH($A30,AllMissDrive)),0,1)*(AllPar>3)) -> 1.421052632
B32: Miss Approach | Y32: To Par
A33: L | B33: Left | C33: =SUM((AllCourse=Course2)*IF(ISERR(SEARCH($A33,AllMissIron)),0,1))/SUM((AllCourse=Course2)*(AllPar<>0)) -> 0.1296296296 | D33: =SUM((AllCourse=Course2)*(AllHole=D$5)*IF(ISERR(SEARCH($A33,AllMissIron)),0,1))/$K$3 -> 0 | E33: =SUM((AllCourse=Course2)*(AllHole=E$5)*IF(ISERR(SEARCH($A33,AllMissIron)),0,1))/$K$3 -> 0 | F33: =SUM((AllCourse=Course2)*(AllHole=F$5)*IF(ISERR(SEARCH($A33,AllMissIron)),0,1))/$K$3 -> 0.3333333333 | G33: =SUM((AllCourse=Course2)*(AllHole=G$5)*IF(ISERR(SEARCH($A33,AllMissIron)),0,1))/$K$3 -> 0 | H33: =SUM((AllCourse=Course2)*(AllHole=H$5)*IF(ISERR(SEARCH($A33,AllMissIron)),0,1))/$K$3 -> 0 | I33: =SUM((AllCourse=Course2)*(AllHole=I$5)*IF(ISERR(SEARCH($A33,AllMissIron)),0,1))/$K$3 -> 0.3333333333 | J33: =SUM((AllCourse=Course2)*(AllHole=J$5)*IF(ISERR(SEARCH($A33,AllMissIron)),0,1))/$K$3 -> 0 | K33: =SUM((AllCourse=Course2)*(AllHole=K$5)*IF(ISERR(SEARCH($A33,AllMissIron)),0,1))/$K$3 -> 0 | L33: =SUM((AllCourse=Course2)*(AllHole=L$5)*IF(ISERR(SEARCH($A33,AllMissIron)),0,1))/$K$3 -> 0 | N33: =SUM((AllCourse=Course2)*(AllHole=N$5)*IF(ISERR(SEARCH($A33,AllMissIron)),0,1))/$K$3 -> 0.3333333333 | O33: =SUM((AllCourse=Course2)*(AllHole=O$5)*IF(ISERR(SEARCH($A33,AllMissIron)),0,1))/$K$3 -> 0 | P33: =SUM((AllCourse=Course2)*(AllHole=P$5)*IF(ISERR(SEARCH($A33,AllMissIron)),0,1))/$K$3 -> 0 | Q33: =SUM((AllCourse=Course2)*(AllHole=Q$5)*IF(ISERR(SEARCH($A33,AllMissIron)),0,1))/$K$3 -> 0 | R33: =SUM((AllCourse=Course2)*(AllHole=R$5)*IF(ISERR(SEARCH($A33,AllMissIron)),0,1))/$K$3 -> 0 | S33: =SUM((AllCourse=Course2)*(AllHole=S$5)*IF(ISERR(SEARCH($A33,AllMissIron)),0,1))/$K$3 -> 0.3333333333 | T33: =SUM((AllCourse=Course2)*(AllHole=T$5)*IF(ISERR(SEARCH($A33,AllMissIron)),0,1))/$K$3 -> 0 | U33: =SUM((AllCourse=Course2)*(AllHole=U$5)*IF(ISERR(SEARCH($A33,AllMissIron)),0,1))/$K$3 -> 0.6666666667 | V33: =SUM((AllCourse=Course2)*(AllHole=V$5)*IF(ISERR(SEARCH($A33,AllMissIron)),0,1))/$K$3 -> 0.3333333333 | Y33: =SUM((AllCourse=Course2)*IF(ISERR(SEARCH($A33,AllMissIron)),0,1)*AllToPar)/SUM((AllCourse=Course2)*IF(ISERR(SEARCH($A33,AllMissIron)),0,1)) -> 1.714285714
A34: R | B34: Right | C34: =SUM((AllCourse=Course2)*IF(ISERR(SEARCH($A34,AllMissIron)),0,1))/SUM((AllCourse=Course2)*(AllPar<>0)) -> 0.4814814815 | D34: =SUM((AllCourse=Course2)*(AllHole=D$5)*IF(ISERR(SEARCH($A34,AllMissIron)),0,1))/$K$3 -> 0.6666666667 | E34: =SUM((AllCourse=Course2)*(AllHole=E$5)*IF(ISERR(SEARCH($A34,AllMissIron)),0,1))/$K$3 -> 0.3333333333 | F34: =SUM((AllCourse=Course2)*(AllHole=F$5)*IF(ISERR(SEARCH($A34,AllMissIron)),0,1))/$K$3 -> 0.6666666667 | G34: =SUM((AllCourse=Course2)*(AllHole=G$5)*IF(ISERR(SEARCH($A34,AllMissIron)),0,1))/$K$3 -> 0.6666666667 | H34: =SUM((AllCourse=Course2)*(AllHole=H$5)*IF(ISERR(SEARCH($A34,AllMissIron)),0,1))/$K$3 -> 0.6666666667 | I34: =SUM((AllCourse=Course2)*(AllHole=I$5)*IF(ISERR(SEARCH($A34,AllMissIron)),0,1))/$K$3 -> 0 | J34: =SUM((AllCourse=Course2)*(AllHole=J$5)*IF(ISERR(SEARCH($A34,AllMissIron)),0,1))/$K$3 -> 0.6666666667 | K34: =SUM((AllCourse=Course2)*(AllHole=K$5)*IF(ISERR(SEARCH($A34,AllMissIron)),0,1))/$K$3 -> 1 | L34: =SUM((AllCourse=Course2)*(AllHole=L$5)*IF(ISERR(SEARCH($A34,AllMissIron)),0,1))/$K$3 -> 1 | N34: =SUM((AllCourse=Course2)*(AllHole=N$5)*IF(ISERR(SEARCH($A34,AllMissIron)),0,1))/$K$3 -> 0.3333333333 | O34: =SUM((AllCourse=Course2)*(AllHole=O$5)*IF(ISERR(SEARCH($A34,AllMissIron)),0,1))/$K$3 -> 0.3333333333 | P34: =SUM((AllCourse=Course2)*(AllHole=P$5)*IF(ISERR(SEARCH($A34,AllMissIron)),0,1))/$K$3 -> 0.3333333333 | Q34: =SUM((AllCourse=Course2)*(AllHole=Q$5)*IF(ISERR(SEARCH($A34,AllMissIron)),0,1))/$K$3 -> 0 | R34: =SUM((AllCourse=Course2)*(AllHole=R$5)*IF(ISERR(SEARCH($A34,AllMissIron)),0,1))/$K$3 -> 1 | S34: =SUM((AllCourse=Course2)*(AllHole=S$5)*IF(ISERR(SEARCH($A34,AllMissIron)),0,1))/$K$3 -> 0.3333333333 | T34: =SUM((AllCourse=Course2)*(AllHole=T$5)*IF(ISERR(SEARCH($A34,AllMissIron)),0,1))/$K$3 -> 0.6666666667 | U34: =SUM((AllCourse=Course2)*(AllHole=U$5)*IF(ISERR(SEARCH($A34,AllMissIron)),0,1))/$K$3 -> 0 | V34: =SUM((AllCourse=Course2)*(AllHole=V$5)*IF(ISERR(SEARCH($A34,AllMissIron)),0,1))/$K$3 -> 0 | Y34: =SUM((AllCourse=Course2)*IF(ISERR(SEARCH($A34,AllMissIron)),0,1)*AllToPar)/SUM((AllCourse=Course2)*IF(ISERR(SEARCH($A34,AllMissIron)),0,1)) -> 1.192307692
A35: S | B35: Short | C35: =SUM((AllCourse=Course2)*IF(ISERR(SEARCH($A35,AllMissIron)),0,1))/SUM((AllCourse=Course2)*(AllPar<>0)) -> 0.3333333333 | D35: =SUM((AllCourse=Course2)*(AllHole=D$5)*IF(ISERR(SEARCH($A35,AllMissIron)),0,1))/$K$3 -> 0.3333333333 | E35: =SUM((AllCourse=Course2)*(AllHole=E$5)*IF(ISERR(SEARCH($A35,AllMissIron)),0,1))/$K$3 -> 0.6666666667 | F35: =SUM((AllCourse=Course2)*(AllHole=F$5)*IF(ISERR(SEARCH($A35,AllMissIron)),0,1))/$K$3 -> 0.3333333333 | G35: =SUM((AllCourse=Course2)*(AllHole=G$5)*IF(ISERR(SEARCH($A35,AllMissIron)),0,1))/$K$3 -> 0.6666666667 | H35: =SUM((AllCourse=Course2)*(AllHole=H$5)*IF(ISERR(SEARCH($A35,AllMissIron)),0,1))/$K$3 -> 0.3333333333 | I35: =SUM((AllCourse=Course2)*(AllHole=I$5)*IF(ISERR(SEARCH($A35,AllMissIron)),0,1))/$K$3 -> 0 | J35: =SUM((AllCourse=Course2)*(AllHole=J$5)*IF(ISERR(SEARCH($A35,AllMissIron)),0,1))/$K$3 -> 0 | K35: =SUM((AllCourse=Course2)*(AllHole=K$5)*IF(ISERR(SEARCH($A35,AllMissIron)),0,1))/$K$3 -> 0.3333333333 | L35: =SUM((AllCourse=Course2)*(AllHole=L$5)*IF(ISERR(SEARCH($A35,AllMissIron)),0,1))/$K$3 -> 0.3333333333 | N35: =SUM((AllCourse=Course2)*(AllHole=N$5)*IF(ISERR(SEARCH($A35,AllMissIron)),0,1))/$K$3 -> 0 | O35: =SUM((AllCourse=Course2)*(AllHole=O$5)*IF(ISERR(SEARCH($A35,AllMissIron)),0,1))/$K$3 -> 0.6666666667 | P35: =SUM((AllCourse=Course2)*(AllHole=P$5)*IF(ISERR(SEARCH($A35,AllMissIron)),0,1))/$K$3 -> 0.3333333333 | Q35: =SUM((AllCourse=Course2)*(AllHole=Q$5)*IF(ISERR(SEARCH($A35,AllMissIron)),0,1))/$K$3 -> 0 | R35: =SUM((AllCourse=Course2)*(AllHole=R$5)*IF(ISERR(SEARCH($A35,AllMissIron)),0,1))/$K$3 -> 1 | S35: =SUM((AllCourse=Course2)*(AllHole=S$5)*IF(ISERR(SEARCH($A35,AllMissIron)),0,1))/$K$3 -> 0.3333333333 | T35: =SUM((AllCourse=Course2)*(AllHole=T$5)*IF(ISERR(SEARCH($A35,AllMissIron)),0,1))/$K$3 -> 0.3333333333 | U35: =SUM((AllCourse=Course2)*(AllHole=U$5)*IF(ISERR(SEARCH($A35,AllMissIron)),0,1))/$K$3 -> 0.3333333333 | V35: =SUM((AllCourse=Course2)*(AllHole=V$5)*IF(ISERR(SEARCH($A35,AllMissIron)),0,1))/$K$3 -> 0 | Y35: =SUM((AllCourse=Course2)*IF(ISERR(SEARCH($A35,AllMissIron)),0,1)*AllToPar)/SUM((AllCourse=Course2)*IF(ISERR(SEARCH($A35,AllMissIron)),0,1)) -> 0.9444444444
A36: G | B36: Long | C36: =SUM((AllCourse=Course2)*IF(ISERR(SEARCH($A36,AllMissIron)),0,1))/SUM((AllCourse=Course2)*(AllPar<>0)) -> 0.09259259259 | D36: =SUM((AllCourse=Course2)*(AllHole=D$5)*IF(ISERR(SEARCH($A36,AllMissIron)),0,1))/$K$3 -> 0 | E36: =SUM((AllCourse=Course2)*(AllHole=E$5)*IF(ISERR(SEARCH($A36,AllMissIron)),0,1))/$K$3 -> 0 | F36: =SUM((AllCourse=Course2)*(AllHole=F$5)*IF(ISERR(SEARCH($A36,AllMissIron)),0,1))/$K$3 -> 0 | G36: =SUM((AllCourse=Course2)*(AllHole=G$5)*IF(ISERR(SEARCH($A36,AllMissIron)),0,1))/$K$3 -> 0 | H36: =SUM((AllCourse=Course2)*(AllHole=H$5)*IF(ISERR(SEARCH($A36,AllMissIron)),0,1))/$K$3 -> 0 | I36: =SUM((AllCourse=Course2)*(AllHole=I$5)*IF(ISERR(SEARCH($A36,AllMissIron)),0,1))/$K$3 -> 0 | J36: =SUM((AllCourse=Course2)*(AllHole=J$5)*IF(ISERR(SEARCH($A36,AllMissIron)),0,1))/$K$3 -> 0 | K36: =SUM((AllCourse=Course2)*(AllHole=K$5)*IF(ISERR(SEARCH($A36,AllMissIron)),0,1))/$K$3 -> 0 | L36: =SUM((AllCourse=Course2)*(AllHole=L$5)*IF(ISERR(SEARCH($A36,AllMissIron)),0,1))/$K$3 -> 0.3333333333 | N36: =SUM((AllCourse=Course2)*(AllHole=N$5)*IF(ISERR(SEARCH($A36,AllMissIron)),0,1))/$K$3 -> 0.3333333333 | O36: =SUM((AllCourse=Course2)*(AllHole=O$5)*IF(ISERR(SEARCH($A36,AllMissIron)),0,1))/$K$3 -> 0 | P36: =SUM((AllCourse=Course2)*(AllHole=P$5)*IF(ISERR(SEARCH($A36,AllMissIron)),0,1))/$K$3 -> 0 | Q36: =SUM((AllCourse=Course2)*(AllHole=Q$5)*IF(ISERR(SEARCH($A36,AllMissIron)),0,1))/$K$3 -> 0 | R36: =SUM((AllCourse=Course2)*(AllHole=R$5)*IF(ISERR(SEARCH($A36,AllMissIron)),0,1))/$K$3 -> 0 | S36: =SUM((AllCourse=Course2)*(AllHole=S$5)*IF(ISERR(SEARCH($A36,AllMissIron)),0,1))/$K$3 -> 0.6666666667 | T36: =SUM((AllCourse=Course2)*(AllHole=T$5)*IF(ISERR(SEARCH($A36,AllMissIron)),0,1))/$K$3 -> 0.3333333333 | U36: =SUM((AllCourse=Course2)*(AllHole=U$5)*IF(ISERR(SEARCH($A36,AllMissIron)),0,1))/$K$3 -> 0 | V36: =SUM((AllCourse=Course2)*(AllHole=V$5)*IF(ISERR(SEARCH($A36,AllMissIron)),0,1))/$K$3 -> 0 | Y36: =SUM((AllCourse=Course2)*IF(ISERR(SEARCH($A36,AllMissIron)),0,1)*AllToPar)/SUM((AllCourse=Course2)*IF(ISERR(SEARCH($A36,AllMissIron)),0,1)) -> 1.4
A37: X | B37: Shank | C37: =SUM((AllCourse=Course2)*IF(ISERR(SEARCH($A37,AllMissIron)),0,1))/SUM((AllCourse=Course2)*(AllPar<>0)) -> 0.03703703704 | D37: =SUM((AllCourse=Course2)*(AllHole=D$5)*IF(ISERR(SEARCH($A37,AllMissIron)),0,1))/$K$3 -> 0 | E37: =SUM((AllCourse=Course2)*(AllHole=E$5)*IF(ISERR(SEARCH($A37,AllMissIron)),0,1))/$K$3 -> 0 | F37: =SUM((AllCourse=Course2)*(AllHole=F$5)*IF(ISERR(SEARCH($A37,AllMissIron)),0,1))/$K$3 -> 0 | G37: =SUM((AllCourse=Course2)*(AllHole=G$5)*IF(ISERR(SEARCH($A37,AllMissIron)),0,1))/$K$3 -> 0 | H37: =SUM((AllCourse=Course2)*(AllHole=H$5)*IF(ISERR(SEARCH($A37,AllMissIron)),0,1))/$K$3 -> 0 | I37: =SUM((AllCourse=Course2)*(AllHole=I$5)*IF(ISERR(SEARCH($A37,AllMissIron)),0,1))/$K$3 -> 0.3333333333 | J37: =SUM((AllCourse=Course2)*(AllHole=J$5)*IF(ISERR(SEARCH($A37,AllMissIron)),0,1))/$K$3 -> 0 | K37: =SUM((AllCourse=Course2)*(AllHole=K$5)*IF(ISERR(SEARCH($A37,AllMissIron)),0,1))/$K$3 -> 0 | L37: =SUM((AllCourse=Course2)*(AllHole=L$5)*IF(ISERR(SEARCH($A37,AllMissIron)),0,1))/$K$3 -> 0 | N37: =SUM((AllCourse=Course2)*(AllHole=N$5)*IF(ISERR(SEARCH($A37,AllMissIron)),0,1))/$K$3 -> 0 | O37: =SUM((AllCourse=Course2)*(AllHole=O$5)*IF(ISERR(SEARCH($A37,AllMissIron)),0,1))/$K$3 -> 0 | P37: =SUM((AllCourse=Course2)*(AllHole=P$5)*IF(ISERR(SEARCH($A37,AllMissIron)),0,1))/$K$3 -> 0 | Q37: =SUM((AllCourse=Course2)*(AllHole=Q$5)*IF(ISERR(SEARCH($A37,AllMissIron)),0,1))/$K$3 -> 0.3333333333 | R37: =SUM((AllCourse=Course2)*(AllHole=R$5)*IF(ISERR(SEARCH($A37,AllMissIron)),0,1))/$K$3 -> 0 | S37: =SUM((AllCourse=Course2)*(AllHole=S$5)*IF(ISERR(SEARCH($A37,AllMissIron)),0,1))/$K$3 -> 0 | T37: =SUM((AllCourse=Course2)*(AllHole=T$5)*IF(ISERR(SEARCH($A37,AllMissIron)),0,1))/$K$3 -> 0 | U37: =SUM((AllCourse=Course2)*(AllHole=U$5)*IF(ISERR(SEARCH($A37,AllMissIron)),0,1))/$K$3 -> 0 | V37: =SUM((AllCourse=Course2)*(AllHole=V$5)*IF(ISERR(SEARCH($A37,AllMissIron)),0,1))/$K$3 -> 0 | Y37: =SUM((AllCourse=Course2)*IF(ISERR(SEARCH($A37,AllMissIron)),0,1)*AllToPar)/SUM((AllCourse=Course2)*IF(ISERR(SEARCH($A37,AllMissIron)),0,1)) -> 2

Sheet Scores (hidden)
C1: 6 | D1: 7 | E1: Score | W1: Putt | AO1: Penalty | BG1: Fairway | BY1: Sand | CQ1: GIR | DI1: ToPar | EA1: Fairway Att | ES1: Par | FK1: Yards | GC1: Handicap | GU1: Miss Drive | HM1: Miss Iron
A2: Course | B2: Date | C2: Notes | D2: List | E2: 1 | F2: 2 | G2: 3 | H2: 4 | I2: 5 | J2: 6 | K2: 7 | L2: 8 | M2: 9 | N2: 10 | O2: 11 | P2: 12 | Q2: 13 | R2: 14 | S2: 15 | T2: 16 | U2: 17 | V2: 18 | W2: 1 | X2: 2 | Y2: 3 | Z2: 4 | AA2: 5 | AB2: 6 | AC2: 7 | AD2: 8 | AE2: 9 | AF2: 10 | AG2: 11 | AH2: 12 | AI2: 13 | AJ2: 14 | AK2: 15 | AL2: 16 | AM2: 17 | AN2: 18 | AO2: 1 | AP2: 2 | AQ2: 3 | AR2: 4 | AS2: 5 | AT2: 6 | AU2: 7 | AV2: 8 | AW2: 9 | AX2: 10 | AY2: 11 | AZ2: 12 | BA2: 13 | BB2: 14 | BC2: 15 | BD2: 16 | BE2: 17 | BF2: 18 | BG2: 1 | BH2: 2 | BI2: 3 | BJ2: 4 | BK2: 5 | BL2: 6 | BM2: 7 | BN2: 8 | BO2: 9 | BP2: 10 | BQ2: 11 | BR2: 12 | BS2: 13 | BT2: 14 | BU2: 15 | BV2: 16 | BW2: 17 | BX2: 18 | BY2: 1 | BZ2: 2 | CA2: 3 | CB2: 4 | CC2: 5 | CD2: 6 | CE2: 7 | CF2: 8 | CG2: 9 | CH2: 10 | CI2: 11 | CJ2: 12 | CK2: 13 | CL2: 14 | CM2: 15 | CN2: 16 | CO2: 17 | CP2: 18 | CQ2: 1 | CR2: 2 | CS2: 3 | CT2: 4 | CU2: 5 | CV2: 6 | CW2: 7 | CX2: 8 | CY2: 9 | CZ2: 10 | DA2: 11 | DB2: 12 | DC2: 13 | DD2: 14 | DE2: 15 | DF2: 16 | DG2: 17 | DH2: 18 | DI2: 1 | DJ2: 2 | DK2: 3 | DL2: 4 | DM2: 5 | DN2: 6 | DO2: 7 | DP2: 8 | DQ2: 9 | DR2: 10 | DS2: 11 | DT2: 12 | DU2: 13 | DV2: 14 | DW2: 15 | DX2: 16 | DY2: 17 | DZ2: 18 | EA2: 1 | EB2: 2 | EC2: 3 | ED2: 4 | EE2: 5 | EF2: 6 | EG2: 7 | EH2: 8 | EI2: 9 | EJ2: 10 | EK2: 11 | EL2: 12 | EM2: 13 | EN2: 14 | EO2: 15 | EP2: 16 | EQ2: 17 | ER2: 18 | ES2: 1 | ET2: 2 | EU2: 3 | EV2: 4 | EW2: 5 | EX2: 6 | EY2: 7 | EZ2: 8 | FA2: 9 | FB2: 10 | FC2: 11 | FD2: 12 | FE2: 13 | FF2: 14 | FG2: 15 | FH2: 16 | FI2: 17 | FJ2: 18 | FK2: 1 | FL2: 2 | FM2: 3 | FN2: 4 | FO2: 5 | FP2: 6 | FQ2: 7 | FR2: 8 | FS2: 9 | FT2: 10 | FU2: 11 | FV2: 12 | FW2: 13 | FX2: 14 | FY2: 15 | FZ2: 16 | GA2: 17 | GB2: 18 | GC2: 1 | GD2: 2 | GE2: 3 | GF2: 4 | GG2: 5 | GH2: 6 | GI2: 7 | GJ2: 8 | GK2: 9 | GL2: 10 | GM2: 11 | GN2: 12 | GO2: 13 | GP2: 14 | GQ2: 15 | GR2: 16 | GS2: 17 | GT2: 18 | GU2: 1 | GV2: 2 | GW2: 3 | GX2: 4 | GY2: 5 | GZ2: 6 | HA2: 7 | HB2: 8 | HC2: 9 | HD2: 10 | HE2: 11 | HF2: 12 | HG2: 13 | HH2: 14 | HI2: 15 | HJ2: 16 | HK2: 17 | HL2: 18 | HM2: 1 | HN2: 2 | HO2: 3 | HP2: 4 | HQ2: 5 | HR2: 6 | HS2: 7 | HT2: 8 | HU2: 9 | HV2: 10 | HW2: 11 | HX2: 12 | HY2: 13 | HZ2: 14 | IA2: 15 | IB2: 16 | IC2: 17 | ID2: 18 | IE2: Count | IF2: Score | IG2: Slope | IH2: Rating | II2: Diff | IJ2: Handicap | IK2: Par | IL2: Putts | IM2: GIR
A3: Chace Lake (White) | B3: 2006-05-25 | C3: Double bogey on 7 was due to shanking driver, shanking 3w and then a bad chip. | D3: 05/25/06 - Chace Lake (White) | E3: 5 | F3: 3 | G3: 5 | H3: 5 | I3: 5 | J3: 5 | K3: 7 | L3: 4 | M3: 4 | N3: 5 | O3: 5 | P3: 4 | Q3: 6 | R3: 4 | S3: 4 | T3: 6 | U3: 4 | V3: 5 | W3: 2 | X3: 1 | Y3: 2 | Z3: 1 | AA3: 2 | AB3: 3 | AC3: 2 | AD3: 2 | AE3: 2 | AF3: 2 | AG3: 2 | AH3: 2 | AI3: 1 | AJ3: 3 | AK3: 2 | AL3: 1 | AM3: 1 | AN3: 2 | AU3: DFC | BG3: 1 | BK3: 1 | BL3: 1 | BO3: 1 | BP3: 1 | BQ3: 1 | BU3: 1 | BX3: 1 | BY3: 2 | BZ3: 1 | CB3: 2 | CF3: 2 | CN3: 1 | CO3: 1 | CQ3: 1 | CR3: 1 | CS3: 1 | CT3: 2 | CU3: 0 | CV3: 0 | CW3: 2 | CX3: 1 | CY3: 0 | CZ3: 1 | DA3: 1 | DB3: 1 | DC3: 2 | DD3: 0 | DE3: 0 | DF3: 2 | DG3: 2 | DH3: 1 | DI3: 1 | DJ3: 0 | DK3: 1 | DL3: 1 | DM3: 0 | DN3: 1 | DO3: 2 | DP3: 1 | DQ3: 0 | DR3: 1 | DS3: 1 | DT3: 1 | DU3: 1 | DV3: 1 | DW3: 0 | DX3: 1 | DY3: 1 | DZ3: 1 | EA3: 1 | EB3: 0 | EC3: 1 | ED3: 1 | EE3: 1 | EF3: 1 | EG3: 1 | EH3: 0 | EI3: 1 | EJ3: 1 | EK3: 1 | EL3: 0 | EM3: 1 | EN3: 0 | EO3: 1 | EP3: 1 | EQ3: 0 | ER3: 1 | ES3: 4 | ET3: 3 | EU3: 4 | EV3: 4 | EW3: 5 | EX3: 4 | EY3: 5 | EZ3: 3 | FA3: 4 | FB3: 4 | FC3: 4 | FD3: 3 | FE3: 5 | FF3: 3 | FG3: 4 | FH3: 5 | FI3: 3 | FJ3: 4 | FK3: 359 | FL3: 148 | FM3: 399 | FN3: 282 | FO3: 495 | FP3: 368 | FQ3: 497 | FR3: 200 | FS3: 311 | FT3: 375 | FU3: 351 | FV3: 173 | FW3: 505 | FX3: 152 | FY3: 346 | FZ3: 566 | GA3: 175 | GB3: 397 | GC3: 13 | GD3: 17 | GE3: 3 | GF3: 11 | GG3: 1 | GH3: 9 | GI3: 5 | GJ3: 15 | GK3: 7 | GL3: 4 | GM3: 10 | GN3: 14 | GO3: 8 | GP3: 18 | GQ3: 12 | GR3: 2 | GS3: 16 | GT3: 6 | GW3: R | HD3: L | HG3: R | HH3: L | HJ3: R | HM3: L | HN3: L | HP3: R | HR3: S | HS3: R | HT3: R | HU3: RG | HV3: R | HW3: RS | HX3: R | HY3: RG | IB3: R | IC3: RS | ID3: G | IE3: 0 | IF3: =SUM(E3:V3) -> 86 | IG3: =OFFSET(Slopes,MATCH(A3,Courses,FALSE),0) -> 128 | IH3: =OFFSET(Ratings,MATCH(A3,Courses,FALSE),0) -> 70.1 | II3: =ROUND((IF3-IH3)*113/IG3,1) -> 14 | IJ3: =NA() ->  | IK3: =SUM(ES3:FJ3) -> 71 | IL3: =SUM(W3:AN3) -> 33 | IM3: =COUNTIF(CQ3:DH3,0) -> 5
A4: Chace Lake (Blue) | B4: 2006-05-27 | C4: #3 - decent drive, but pushed my 5wood 30 yards right of green, then pitched over the green. #6 - good drive, shanked my 7 iron into woods (had downhill lie). #10 - good drive (almost too far into water), approach into trap, caught ball clean from trap into other trap, hit back over the green for 2nd bunker shot, then chip and 2 putts. #13 - good drive, 3 hybrid hit tree and left awkward approach, shanked approach, left me with 60 yard pitch which I pushed big time, chip and two putts. #16 - decent drive, good hybrid, then bad hybrid on the approach hit cart path and went 30 yards right of green. #18 - bad drive (maybe 150 yards), awesome 3 wood from 250 (with a little help from cart path), left with simple chip that I ran over the green, even easier chip coming back, but still two putted. Short game was not good today. Putting wasn't great either. Iron play was pretty bad too. | D4: 05/27/06 - Chace Lake (Blue) | E4: 5 | F4: 2 | G4: 6 | H4: 5 | I4: 5 | J4: 6 | K4: 6 | L4: 4 | M4: 5 | N4: 7 | O4: 4 | P4: 3 | Q4: 7 | R4: 4 | S4: 5 | T4: 7 | U4: 4 | V4: 6 | W4: 2 | X4: 1 | Y4: 2 | Z4: 1 | AA4: 1 | AB4: 2 | AC4: 2 | AD4: 2 | AE4: 3 | AF4: 2 | AG4: 1 | AH4: 2 | AI4: 2 | AJ4: 3 | AK4: 2 | AL4: 2 | AM4: 2 | AN4: 2 | AQ4: FT | AT4: S | AW4: P | AX4: SN | BA4: LSW | BB4: P | BD4: L | BF4: DC | BG4: 1 | BI4: 1 | BK4: 1 | BL4: 1 | BO4: 1 | BP4: 1 | BS4: 1 | BV4: 1 | CB4: 2 | CD4: 2 | CF4: 2 | CH4: 4 | CQ4: 1 | CR4: 0 | CS4: 2 | CT4: 2 | CU4: 1 | CV4: 2 | CW4: 1 | CX4: 1 | CY4: 0 | CZ4: 3 | DA4: 1 | DB4: 0 | DC4: 2 | DD4: 0 | DE4: 1 | DF4: 2 | DG4: 1 | DH4: 2 | DI4: 1 | DJ4: -1 | DK4: 2 | DL4: 1 | DM4: 0 | DN4: 2 | DO4: 1 | DP4: 1 | DQ4: 1 | DR4: 3 | DS4: 0 | DT4: 0 | DU4: 2 | DV4: 1 | DW4: 1 | DX4: 2 | DY4: 1 | DZ4: 2 | EA4: 1 | EB4: 0 | EC4: 1 | ED4: 1 | EE4: 1 | EF4: 1 | EG4: 1 | EH4: 0 | EI4: 1 | EJ4: 1 | EK4: 1 | EL4: 0 | EM4: 1 | EN4: 0 | EO4: 1 | EP4: 1 | EQ4: 0 | ER4: 1 | ES4: 4 | ET4: 3 | EU4: 4 | EV4: 4 | EW4: 5 | EX4: 4 | EY4: 5 | EZ4: 3 | FA4: 4 | FB4: 4 | FC4: 4 | FD4: 3 | FE4: 5 | FF4: 3 | FG4: 4 | FH4: 5 | FI4: 3 | FJ4: 4 | FK4: 380 | FL4: 155 | FM4: 414 | FN4: 308 | FO4: 574 | FP4: 419 | FQ4: 548 | FR4: 206 | FS4: 320 | FT4: 405 | FU4: 376 | FV4: 198 | FW4: 522 | FX4: 172 | FY4: 378 | FZ4: 554 | GA4: 194 | GB4: 454 | GC4: 13 | GD4: 17 | GE4: 3 | GF4: 11 | GG4: 1 | GH4: 9 | GI4: 5 | GJ4: 15 | GK4: 7 | GL4: 4 | GM4: 10 | GN4: 14 | GO4: 8 | GP4: 18 | GQ4: 12 | GR4: 2 | GS4: 16 | GT4: 6 | GX4: R | HA4: X | HE4: L | HI4: G | HL4: X | HM4: S | HO4: R | HP4: S | HQ4: R | HR4: X | HS4: R | HT4: RS | HU4: RG | HV4: R | HW4: S | HY4: X | HZ4: RS | IA4: G | IB4: R | IC4: L | IE4: 0 | IF4: =SUM(E4:V4) -> 91 | IG4: 125 | IH4: 71.2 | II4: =ROUND((IF4-IH4)*113/IG4,1) -> 17.9 | IJ4: =NA() ->  | IK4: 71 | IL4: =SUM(W4:AN4) -> 34 | IM4: =COUNTIF(CQ4:DH4,0) -> 4
A5: Chace Lake (White) | B5: 2006-05-28 | C5: Missed a couple of short putts on this round. #11 - great drive, then pulled a 7 iron wayyy left, right next to tree, had to hit away from hole, then pitch shot didn't make it up the hill. #12 - again a big pull. #16 - big pull with driver and the hit my layup too far. | D5: 05/28/06 - Chace Lake (White) | E5: 5 | F5: 4 | G5: 5 | H5: 4 | I5: 5 | J5: 5 | K5: 6 | L5: 4 | M5: 5 | N5: 4 | O5: 7 | P5: 5 | Q5: 5 | R5: 4 | S5: 5 | T5: 7 | U5: 3 | V5: 5 | W5: 2 | X5: 1 | Y5: 1 | Z5: 2 | AA5: 2 | AB5: 3 | AC5: 2 | AD5: 2 | AE5: 2 | AF5: 1 | AG5: 2 | AH5: 3 | AI5: 2 | AJ5: 1 | AK5: 2 | AL5: 2 | AM5: 1 | AN5: 3 | AT5: P | AY5: S | AZ5: SP | BD5: D | BF5: P | BK5: 1 | BL5: 1 | BM5: 1 | BP5: 1 | BQ5: 1 | BX5: 1 | BY5: 2 | BZ5: 2 | CL5: 2 | CN5: 2 | CQ5: 1 | CR5: 2 | CS5: 2 | CT5: 0 | CU5: 0 | CV5: 0 | CW5: 1 | CX5: 1 | CY5: 1 | CZ5: 1 | DA5: 3 | DB5: 1 | DC5: 0 | DD5: 2 | DE5: 1 | DF5: 2 | DG5: 1 | DH5: 0 | DI5: 1 | DJ5: 1 | DK5: 1 | DL5: 0 | DM5: 0 | DN5: 1 | DO5: 1 | DP5: 1 | DQ5: 1 | DR5: 0 | DS5: 3 | DT5: 2 | DU5: 0 | DV5: 1 | DW5: 1 | DX5: 2 | DY5: 0 | DZ5: 1 | EA5: 1 | EB5: 0 | EC5: 1 | ED5: 1 | EE5: 1 | EF5: 1 | EG5: 1 | EH5: 0 | EI5: 1 | EJ5: 1 | EK5: 1 | EL5: 0 | EM5: 1 | EN5: 0 | EO5: 1 | EP5: 1 | EQ5: 0 | ER5: 1 | ES5: 4 | ET5: 3 | EU5: 4 | EV5: 4 | EW5: 5 | EX5: 4 | EY5: 5 | EZ5: 3 | FA5: 4 | FB5: 4 | FC5: 4 | FD5: 3 | FE5: 5 | FF5: 3 | FG5: 4 | FH5: 5 | FI5: 3 | FJ5: 4 | FK5: 359 | FL5: 148 | FM5: 399 | FN5: 282 | FO5: 495 | FP5: 368 | FQ5: 497 | FR5: 200 | FS5: 311 | FT5: 375 | FU5: 351 | FV5: 173 | FW5: 505 | FX5: 152 | FY5: 346 | FZ5: 566 | GA5: 175 | GB5: 397 | GC5: 13 | GD5: 17 | GE5: 3 | GF5: 11 | GG5: 1 | GH5: 9 | GI5: 5 | GJ5: 15 | GK5: 7 | GL5: 4 | GM5: 10 | GN5: 14 | GO5: 8 | GP5: 18 | GQ5: 12 | GR5: 2 | GS5: 16 | GT5: 6 | GU5: L | GW5: R | GX5: R | HC5: R | HI5: L | HJ5: L | HN5: L | HP5: S | HQ5: R | HR5: S | HS5: R | HT5: L | HV5: LS | HW5: L | HX5: L | HY5: G | HZ5: L | IB5: R | IC5: R | IE5: 0 | IF5: 88 | IG5: 128 | IH5: 70.1 | II5: 15.8 | IJ5: =NA() ->  | IK5: 71 | IL5: 34 | IM5: 5
A6: Chace Lake (Blue) | B6: 2006-05-29 | C6: #6 - nice drive, down hill lie for my approach and pulled my 6 iron into bunker, 4 shots later triple bogey. #8 - push my 5 wood way right, bad pitch, bad pitch, two putts. #10 - shank drive and bad approach. #13 - diaster from start to finish. #18 - bad drive. | D6: 05/29/06 - Chace Lake (Blue) | E6: 4 | F6: 3 | G6: 5 | H6: 4 | I6: 6 | J6: 7 | K6: 6 | L6: 5 | M6: 5 | N6: 6 | O6: 4 | P6: 4 | Q6: 9 | R6: 4 | S6: 5 | T6: 6 | U6: 4 | V6: 6 | W6: 1 | X6: 1 | Y6: 2 | Z6: 2 | AA6: 2 | AB6: 3 | AC6: 2 | AD6: 1 | AE6: 2 | AF6: 2 | AG6: 2 | AH6: 3 | AI6: 3 | AJ6: 2 | AK6: 2 | AL6: 2 | AM6: 2 | AN6: 2 | AT6: MNP | AV6: F | AX6: DS | AZ6: P | BA6: DSP | BF6: D | BI6: 1 | BK6: 1 | BL6: 1 | BO6: 1 | BQ6: 1 | BU6: 1 | CE6: 4 | CH6: 2 | CQ6: 1 | CR6: 1 | CS6: 1 | CT6: 0 | CU6: 1 | CV6: 2 | CW6: 1 | CX6: 3 | CY6: 1 | CZ6: 2 | DA6: 0 | DB6: 0 | DC6: 3 | DD6: 1 | DE6: 1 | DF6: 1 | DG6: 1 | DH6: 2 | DI6: 0 | DJ6: 0 | DK6: 1 | DL6: 0 | DM6: 1 | DN6: 3 | DO6: 1 | DP6: 2 | DQ6: 1 | DR6: 2 | DS6: 0 | DT6: 1 | DU6: 4 | DV6: 1 | DW6: 1 | DX6: 1 | DY6: 1 | DZ6: 2 | EA6: 1 | EB6: 0 | EC6: 1 | ED6: 1 | EE6: 1 | EF6: 1 | EG6: 1 | EH6: 0 | EI6: 1 | EJ6: 1 | EK6: 1 | EL6: 0 | EM6: 1 | EN6: 0 | EO6: 1 | EP6: 1 | EQ6: 0 | ER6: 1 | ES6: 4 | ET6: 3 | EU6: 4 | EV6: 4 | EW6: 5 | EX6: 4 | EY6: 5 | EZ6: 3 | FA6: 4 | FB6: 4 | FC6: 4 | FD6: 3 | FE6: 5 | FF6: 3 | FG6: 4 | FH6: 5 | FI6: 3 | FJ6: 4 | FK6: 380 | FL6: 155 | FM6: 414 | FN6: 308 | FO6: 574 | FP6: 419 | FQ6: 548 | FR6: 206 | FS6: 320 | FT6: 405 | FU6: 376 | FV6: 198 | FW6: 522 | FX6: 172 | FY6: 378 | FZ6: 554 | GA6: 194 | GB6: 454 | GC6: 13 | GD6: 17 | GE6: 3 | GF6: 11 | GG6: 1 | GH6: 9 | GI6: 5 | GJ6: 15 | GK6: 7 | GL6: 4 | GM6: 10 | GN6: 14 | GO6: 8 | GP6: 18 | GQ6: 12 | GR6: 2 | GS6: 16 | GT6: 6 | GU6: L | GX6: R | HA6: R | HD6: X | HE6: L | HG6: X | HJ6: R | HM6: R | HN6: S | HO6: SR | HP6: R | HQ6: S | HR6: L | HS6: R | HT6: R | HU6: R | HV6: L | HZ6: SR | IA6: SR | IB6: SR | IC6: L | ID6: L | IE6: 0 | IF6: 93 | IG6: 125 | IH6: 71.2 | II6: 19.7 | IJ6: =NA() ->  | IK6: 71 | IL6: 36 | IM6: 3
A7: Chace Lake (White) | B7: 2006-06-04T20:48:03 | C7: #9 - disaster! Chunked 3W into water and couldn't recover. #16 - great drive, but chunked my lay-up, pushed my approach. | D7: 06/04/06 - Chace Lake (White) | E7: 4 | F7: 4 | G7: 4 | H7: 5 | I7: 5 | J7: 4 | K7: 5 | L7: 4 | M7: 8 | N7: 5 | O7: 4 | P7: 4 | Q7: 5 | R7: 4 | S7: 5 | T7: 8 | U7: 4 | V7: 4 | W7: 1 | X7: 3 | Y7: 1 | Z7: 2 | AA7: 2 | AB7: 1 | AC7: 2 | AD7: 2 | AE7: 2 | AF7: 3 | AG7: 2 | AH7: 3 | AI7: 2 | AJ7: 2 | AK7: 2 | AL7: 2 | AM7: 3 | AN7: 1 | AP7: P | AW7: F | AX7: P | AZ7: P | BD7: LM | BE7: P | BI7: 1 | BJ7: 1 | BM7: 1 | BQ7: 1 | BS7: 1 | BU7: 1 | BV7: 1 | BX7: 1 | CL7: 2 | CQ7: 1 | CR7: 0 | CS7: 1 | CT7: 1 | CU7: 0 | CV7: 1 | CW7: 0 | CX7: 1 | CY7: 3 | CZ7: 0 | DA7: 0 | DB7: 0 | DC7: 0 | DD7: 1 | DE7: 1 | DF7: 3 | DG7: 0 | DH7: 1 | DI7: 0 | DJ7: 1 | DK7: 0 | DL7: 1 | DM7: 0 | DN7: 0 | DO7: 0 | DP7: 1 | DQ7: 4 | DR7: 1 | DS7: 0 | DT7: 1 | DU7: 0 | DV7: 1 | DW7: 1 | DX7: 3 | DY7: 1 | DZ7: 0 | EA7: 1 | EB7: 0 | EC7: 1 | ED7: 1 | EE7: 1 | EF7: 1 | EG7: 1 | EH7: 0 | EI7: 1 | EJ7: 1 | EK7: 1 | EL7: 0 | EM7: 1 | EN7: 0 | EO7: 1 | EP7: 1 | EQ7: 0 | ER7: 1 | ES7: 4 | ET7: 3 | EU7: 4 | EV7: 4 | EW7: 5 | EX7: 4 | EY7: 5 | EZ7: 3 | FA7: 4 | FB7: 4 | FC7: 4 | FD7: 3 | FE7: 5 | FF7: 3 | FG7: 4 | FH7: 5 | FI7: 3 | FJ7: 4 | FK7: 359 | FL7: 148 | FM7: 399 | FN7: 282 | FO7: 495 | FP7: 368 | FQ7: 497 | FR7: 200 | FS7: 311 | FT7: 375 | FU7: 351 | FV7: 173 | FW7: 505 | FX7: 152 | FY7: 346 | FZ7: 566 | GA7: 175 | GB7: 397 | GC7: 13 | GD7: 17 | GE7: 3 | GF7: 11 | GG7: 1 | GH7: 9 | GI7: 5 | GJ7: 15 | GK7: 7 | GL7: 4 | GM7: 10 | GN7: 14 | GO7: 8 | GP7: 18 | GQ7: 12 | GR7: 2 | GS7: 16 | GT7: 6 | GU7: L | GZ7: L | HC7: X | HD7: R | HM7: L | HN7: R | HO7: R | HR7: G | HS7: L | HT7: X | HV7: S | HX7: R | HZ7: L | IA7: G | IB7: R | IC7: SL | ID7: S | IE7: 1 | IF7: 86 | IG7: 128 | IH7: 70.1 | II7: 14 | IJ7: =TRUNC(0.96*AVERAGE(SMALL($II$3:II7,ROW(INDIRECT("1:"&IE7)))),1) -> 13.4 | IK7: 71 | IL7: 36 | IM7: 8
A8: Chace Lake (White) | B8: 2006-06-15 | C8: Started on the back nine. Roughest start in a LONG time. Proud of the comeback I made. | D8: 06/15/06 - Chace Lake (White) | E8: 6 | F8: 3 | G8: 5 | H8: 4 | I8: 5 | J8: 4 | K8: 5 | L8: 4 | M8: 4 | N8: 7 | O8: 8 | P8: 6 | Q8: 7 | R8: 5 | S8: 5 | T8: 5 | U8: 4 | V8: 5 | W8: 2 | X8: 1 | Y8: 2 | Z8: 2 | AA8: 2 | AB8: 2 | AC8: 2 | AD8: 3 | AE8: 2 | AF8: 2 | AG8: 3 | AH8: 2 | AI8: 3 | AJ8: 2 | AK8: 2 | AL8: 1 | AM8: 3 | AN8: 2 | AO8: DT | AQ8: 1 | AV8: P | AX8: SD | AY8: MTP | AZ8: MT | BA8: P | BB8: MW | BE8: P | BJ8: 1 | BK8: 1 | BL8: 1 | BM8: 1 | BO8: 1 | BQ8: 1 | BX8: 1 | CH8: 3 | CI8: 4 | CL8: 2 | CQ8: 2 | CR8: 1 | CS8: 1 | CT8: 0 | CU8: 0 | CV8: 0 | CW8: 0 | CX8: 0 | CY8: 0 | CZ8: 3 | DA8: 3 | DB8: 3 | DC8: 1 | DD8: 2 | DE8: 1 | DF8: 1 | DG8: 0 | DH8: 1 | DI8: 2 | DJ8: 0 | DK8: 1 | DL8: 0 | DM8: 0 | DN8: 0 | DO8: 0 | DP8: 1 | DQ8: 0 | DR8: 3 | DS8: 4 | DT8: 3 | DU8: 2 | DV8: 2 | DW8: 1 | DX8: 0 | DY8: 1 | DZ8: 1 | EA8: 1 | EB8: 0 | EC8: 1 | ED8: 1 | EE8: 1 | EF8: 1 | EG8: 1 | EH8: 0 | EI8: 1 | EJ8: 1 | EK8: 1 | EL8: 0 | EM8: 1 | EN8: 0 | EO8: 1 | EP8: 1 | EQ8: 0 | ER8: 1 | ES8: 4 | ET8: 3 | EU8: 4 | EV8: 4 | EW8: 5 | EX8: 4 | EY8: 5 | EZ8: 3 | FA8: 4 | FB8: 4 | FC8: 4 | FD8: 3 | FE8: 5 | FF8: 3 | FG8: 4 | FH8: 5 | FI8: 3 | FJ8: 4 | FK8: 359 | FL8: 148 | FM8: 399 | FN8: 282 | FO8: 495 | FP8: 368 | FQ8: 497 | FR8: 200 | FS8: 311 | FT8: 375 | FU8: 351 | FV8: 173 | FW8: 505 | FX8: 152 | FY8: 346 | FZ8: 566 | GA8: 175 | GB8: 397 | GC8: 13 | GD8: 17 | GE8: 3 | GF8: 11 | GG8: 1 | GH8: 9 | GI8: 5 | GJ8: 15 | GK8: 7 | GL8: 4 | GM8: 10 | GN8: 14 | GO8: 8 | GP8: 18 | GQ8: 12 | GR8: 2 | GS8: 16 | GT8: 6 | GU8: R | GW8: L | HC8: R | HD8: R | HE8: R | HG8: L | HI8: L | HJ8: R | HM8: S | HN8: S | HP8: GR | HR8: S | HS8: S | HT8: S | HU8: R | HV8: LG | HW8: R | HX8: L | HY8: S | HZ8: RG | IA8: L | IB8: R | IC8: G | ID8: L | IE8: 1 | IF8: 92 | IG8: 128 | IH8: 70.1 | II8: 19.3 | IJ8: =TRUNC(0.96*AVERAGE(SMALL($II$3:II8,ROW(INDIRECT("1:"&IE8)))),1) -> 13.4 | IK8: 71 | IL8: 38 | IM8: 7
A9: Chace Lake (White) | B9: 2006-06-22 | D9: 06/22/06 - Chace Lake (White) | E9: 6 | F9: 4 | G9: 5 | H9: 4 | I9: 6 | J9: 4 | K9: 6 | L9: 3 | M9: 6 | N9: 4 | O9: 6 | P9: 4 | Q9: 7 | R9: 3 | S9: 4 | T9: 8 | U9: 4 | V9: 5 | W9: 3 | X9: 2 | Y9: 1 | Z9: 1 | AA9: 2 | AB9: 1 | AC9: 3 | AD9: 1 | AE9: 3 | AF9: 2 | AG9: 2 | AH9: 3 | AI9: 2 | AJ9: 1 | AK9: 2 | AL9: 2 | AM9: 2 | AN9: 2 | AO9: FWP | AP9: S | AQ9: MT | AU9: P | AW9: SP | AY9: DM | AZ9: P | BA9: D | BD9: DLS | BI9: 1 | BJ9: 1 | BL9: 1 | BM9: 1 | BU9: 1 | CC9: 2 | CQ9: 1 | CR9: 1 | CS9: 2 | CT9: 1 | CU9: 1 | CV9: 1 | CW9: 0 | CX9: 1 | CY9: 1 | CZ9: 0 | DA9: 2 | DB9: 0 | DC9: 2 | DD9: 1 | DE9: 0 | DF9: 3 | DG9: 1 | DH9: 1 | DI9: 2 | DJ9: 1 | DK9: 1 | DL9: 0 | DM9: 1 | DN9: 0 | DO9: 1 | DP9: 0 | DQ9: 2 | DR9: 0 | DS9: 2 | DT9: 1 | DU9: 2 | DV9: 0 | DW9: 0 | DX9: 3 | DY9: 1 | DZ9: 1 | EA9: 1 | EB9: 0 | EC9: 1 | ED9: 1 | EE9: 1 | EF9: 1 | EG9: 1 | EH9: 0 | EI9: 1 | EJ9: 1 | EK9: 1 | EL9: 0 | EM9: 1 | EN9: 0 | EO9: 1 | EP9: 1 | EQ9: 0 | ER9: 1 | ES9: 4 | ET9: 3 | EU9: 4 | EV9: 4 | EW9: 5 | EX9: 4 | EY9: 5 | EZ9: 3 | FA9: 4 | FB9: 4 | FC9: 4 | FD9: 3 | FE9: 5 | FF9: 3 | FG9: 4 | FH9: 5 | FI9: 3 | FJ9: 4 | FK9: 359 | FL9: 148 | FM9: 399 | FN9: 282 | FO9: 495 | FP9: 368 | FQ9: 497 | FR9: 200 | FS9: 311 | FT9: 375 | FU9: 351 | FV9: 173 | FW9: 505 | FX9: 152 | FY9: 346 | FZ9: 566 | GA9: 175 | GB9: 397 | GC9: 13 | GD9: 17 | GE9: 3 | GF9: 11 | GG9: 1 | GH9: 9 | GI9: 5 | GJ9: 15 | GK9: 7 | GL9: 4 | GM9: 10 | GN9: 14 | GO9: 8 | GP9: 18 | GQ9: 12 | GR9: 2 | GS9: 16 | GT9: 6 | GU9: L | GW9: L | GY9: R | GZ9: L | HA9: L | HC9: R | HE9: L | HG9: L | HJ9: R | HL9: L | HM9: S | HN9: R | HO9: R | HP9: SR | HQ9: SR | HR9: R | HS9: G | HT9: SR | HU9: SR | HV9: G | HW9: S | HX9: S | HZ9: S | IA9: S | IB9: R | IC9: R | IE9: 2 | IF9: 89 | IG9: 128 | IH9: 70.1 | II9: 16.7 | IJ9: =TRUNC(0.96*AVERAGE(SMALL($II$3:II9,ROW(INDIRECT("1:"&IE9)))),1) -> 13.4 | IK9: 71 | IL9: 35 | IM9: 4
A10: Chace Lake (Blue) | B10: 2006-06-24 | D10: 06/24/06 - Chace Lake (Blue) | E10: 7 | F10: 3 | G10: 4 | H10: 6 | I10: 6 | J10: 6 | K10: 5 | L10: 4 | M10: 5 | N10: 6 | O10: 6 | P10: 5 | Q10: 7 | R10: 3 | S10: 7 | T10: 5 | U10: 4 | V10: 7 | W10: 3 | X10: 1 | Y10: 1 | Z10: 3 | AA10: 2 | AB10: 2 | AC10: 2 | AD10: 2 | AE10: 2 | AF10: 2 | AG10: 2 | AH10: 2 | AI10: 2 | AJ10: 1 | AK10: 3 | AL10: 2 | AM10: 3 | AN10: 3 | AO10: TP | AR10: SP | AS10: F | AT10: W | AV10: C | AW10: S | AX10: M | AY10: D | AZ10: T | BA10: L | BC10: CP | BE10: P | BF10: DFP | BG10: 1 | BI10: 1 | BJ10: 1 | BK10: 1 | BM10: 1 | BO10: 1 | BP10: 1 | CB10: 3 | CL10: 1 | CQ10: 2 | CR10: 1 | CS10: 1 | CT10: 1 | CU10: 1 | CV10: 2 | CW10: 0 | CX10: 1 | CY10: 1 | CZ10: 2 | DA10: 2 | DB10: 2 | DC10: 2 | DD10: 1 | DE10: 2 | DF10: 0 | DG10: 0 | DH10: 2 | DI10: 3 | DJ10: 0 | DK10: 0 | DL10: 2 | DM10: 1 | DN10: 2 | DO10: 0 | DP10: 1 | DQ10: 1 | DR10: 2 | DS10: 2 | DT10: 2 | DU10: 2 | DV10: 0 | DW10: 3 | DX10: 0 | DY10: 1 | DZ10: 3 | EA10: 1 | EB10: 0 | EC10: 1 | ED10: 1 | EE10: 1 | EF10: 1 | EG10: 1 | EH10: 0 | EI10: 1 | EJ10: 1 | EK10: 1 | EL10: 0 | EM10: 1 | EN10: 0 | EO10: 1 | EP10: 1 | EQ10: 0 | ER10: 1 | ES10: 4 | ET10: 3 | EU10: 4 | EV10: 4 | EW10: 5 | EX10: 4 | EY10: 5 | EZ10: 3 | FA10: 4 | FB10: 4 | FC10: 4 | FD10: 3 | FE10: 5 | FF10: 3 | FG10: 4 | FH10: 5 | FI10: 3 | FJ10: 4 | FK10: 380 | FL10: 155 | FM10: 414 | FN10: 308 | FO10: 574 | FP10: 419 | FQ10: 548 | FR10: 206 | FS10: 320 | FT10: 405 | FU10: 376 | FV10: 198 | FW10: 522 | FX10: 172 | FY10: 378 | FZ10: 554 | GA10: 194 | GB10: 454 | GC10: 13 | GD10: 17 | GE10: 3 | GF10: 11 | GG10: 1 | GH10: 9 | GI10: 5 | GJ10: 15 | GK10: 7 | GL10: 4 | GM10: 10 | GN10: 14 | GO10: 8 | GP10: 18 | GQ10: 12 | GR10: 2 | GS10: 16 | GT10: 6 | GZ10: L | HD10: L | HE10: X | HG10: R | HI10: R | HJ10: R | HL10: R | HM10: R | HN10: SR | HO10: L | HP10: SR | HQ10: R | HT10: R | HU10: SR | HV10: G | HW10: SR | HX10: SR | HZ10: SR | IA10: GL | IB10: G | IC10: S | IE10: 2 | IF10: 96 | IG10: 125 | IH10: 71.2 | II10: 22.4 | IJ10: =TRUNC(0.96*AVERAGE(SMALL($II$3:II10,ROW(INDIRECT("1:"&IE10)))),1) -> 13.4 | IK10: 71 | IL10: 38 | IM10: 3
IE11: 3 | IF11: 0 | IJ11: =TRUNC(0.96*AVERAGE(SMALL($II$3:II11,ROW(INDIRECT("1:"&IE11)))),1) ->  | IK11: 0 | IL11: 0 | IM11: 0
IE12: 3 | IF12: 0 | IJ12: =TRUNC(0.96*AVERAGE(SMALL($II$3:II12,ROW(INDIRECT("1:"&IE12)))),1) ->  | IK12: 0 | IL12: 0 | IM12: 0
IE13: 4 | IF13: 0 | IJ13: =TRUNC(0.96*AVERAGE(SMALL($II$3:II13,ROW(INDIRECT("1:"&IE13)))),1) ->  | IK13: 0 | IL13: 0 | IM13: 0
IE14: 4 | IF14: 0 | IJ14: =TRUNC(0.96*AVERAGE(SMALL($II$3:II14,ROW(INDIRECT("1:"&IE14)))),1) ->  | IK14: 0 | IL14: 0 | IM14: 0
IE15: 5 | IF15: 0 | IJ15: =TRUNC(0.96*AVERAGE(SMALL($II$3:II15,ROW(INDIRECT("1:"&IE15)))),1) ->  | IK15: 0 | IL15: 0 | IM15: 0
IE16: 5 | IF16: 0 | IJ16: =TRUNC(0.96*AVERAGE(SMALL($II$3:II16,ROW(INDIRECT("1:"&IE16)))),1) ->  | IK16: 0 | IL16: 0 | IM16: 0
IE17: 6 | IF17: 0 | IJ17: =TRUNC(0.96*AVERAGE(SMALL($II$3:II17,ROW(INDIRECT("1:"&IE17)))),1) ->  | IK17: 0 | IL17: 0 | IM17: 0
IE18: 6 | IF18: 0 | IJ18: =TRUNC(0.96*AVERAGE(SMALL($II$3:II18,ROW(INDIRECT("1:"&IE18)))),1) ->  | IK18: 0 | IL18: 0 | IM18: 0
IE19: 7 | IF19: 0 | IJ19: =TRUNC(0.96*AVERAGE(SMALL($II$3:II19,ROW(INDIRECT("1:"&IE19)))),1) ->  | IK19: 0 | IL19: 0 | IM19: 0
IE20: 8 | IF20: 0 | IJ20: =TRUNC(0.96*AVERAGE(SMALL($II$3:II20,ROW(INDIRECT("1:"&IE20)))),1) ->  | IK20: 0 | IL20: 0 | IM20: 0
IE21: 9 | IF21: 0 | IJ21: =TRUNC(0.96*AVERAGE(SMALL($II$3:II21,ROW(INDIRECT("1:"&IE21)))),1) ->  | IK21: 0 | IL21: 0 | IM21: 0
IE22: 10 | IF22: 0 | IJ22: =TRUNC(0.96*AVERAGE(SMALL($II$3:II22,ROW(INDIRECT("1:"&IE22)))),1) ->  | IK22: 0 | IL22: 0 | IM22: 0
IE23: 10 | IF23: 0 | II23: =ROUND((IF23-IH23)*113/IG23,1) ->  | IJ23: =TRUNC(0.96*AVERAGE(SMALL(II3:II23,ROW(INDIRECT("1:"&IE23)))),1) ->  | IK23: 0 | IL23: 0 | IM23: 0

Sheet Course Data (hidden)
B2: 2 | C2: 2 | D2: Yards | Y2: Par | AT2: Handicap
A3: Course | B3: Rating | C3: Slope | D3: 1 | E3: 2 | F3: 3 | G3: 4 | H3: 5 | I3: 6 | J3: 7 | K3: 8 | L3: 9 | M3: Out | N3: 10 | O3: 11 | P3: 12 | Q3: 13 | R3: 14 | S3: 15 | T3: 16 | U3: 17 | V3: 18 | W3: In | X3: Total | Y3: 1 | Z3: 2 | AA3: 3 | AB3: 4 | AC3: 5 | AD3: 6 | AE3: 7 | AF3: 8 | AG3: 9 | AH3: Out | AI3: 10 | AJ3: 11 | AK3: 12 | AL3: 13 | AM3: 14 | AN3: 15 | AO3: 16 | AP3: 17 | AQ3: 18 | AR3: In | AS3: Total | AT3: 1 | AU3: 2 | AV3: 3 | AW3: 4 | AX3: 5 | AY3: 6 | AZ3: 7 | BA3: 8 | BB3: 9 | BC3: Out | BD3: 10 | BE3: 11 | BF3: 12 | BG3: 13 | BH3: 14 | BI3: 15 | BJ3: 16 | BK3: 17 | BL3: 18 | BM3: In | BN3: Total
A4: Chace Lake (White) | B4: 70.1 | C4: 128 | D4: 359 | E4: 148 | F4: 399 | G4: 282 | H4: 495 | I4: 368 | J4: 497 | K4: 200 | L4: 311 | M4: 3059 | N4: 375 | O4: 351 | P4: 173 | Q4: 505 | R4: 152 | S4: 346 | T4: 566 | U4: 175 | V4: 397 | W4: 3040 | X4: 6099 | Y4: 4 | Z4: 3 | AA4: 4 | AB4: 4 | AC4: 5 | AD4: 4 | AE4: 5 | AF4: 3 | AG4: 4 | AH4: 36 | AI4: 4 | AJ4: 4 | AK4: 3 | AL4: 5 | AM4: 3 | AN4: 4 | AO4: 5 | AP4: 3 | AQ4: 4 | AR4: 35 | AS4: 71 | AT4: 13 | AU4: 17 | AV4: 3 | AW4: 11 | AX4: 1 | AY4: 9 | AZ4: 5 | BA4: 15 | BB4: 7 | BD4: 4 | BE4: 10 | BF4: 14 | BG4: 8 | BH4: 18 | BI4: 12 | BJ4: 2 | BK4: 16 | BL4: 6
A5: Chace Lake (Blue) | B5: 71.2 | C5: 125 | D5: 380 | E5: 155 | F5: 414 | G5: 308 | H5: 574 | I5: 419 | J5: 548 | K5: 206 | L5: 320 | M5: 3324 | N5: 405 | O5: 376 | P5: 198 | Q5: 522 | R5: 172 | S5: 378 | T5: 554 | U5: 194 | V5: 454 | W5: 3253 | X5: 6577 | Y5: 4 | Z5: 3 | AA5: 4 | AB5: 4 | AC5: 5 | AD5: 4 | AE5: 5 | AF5: 3 | AG5: 4 | AH5: 36 | AI5: 4 | AJ5: 4 | AK5: 3 | AL5: 5 | AM5: 3 | AN5: 4 | AO5: 5 | AP5: 3 | AQ5: 4 | AR5: 35 | AS5: 71 | AT5: 13 | AU5: 17 | AV5: 3 | AW5: 11 | AX5: 1 | AY5: 9 | AZ5: 5 | BA5: 15 | BB5: 7 | BD5: 4 | BE5: 10 | BF5: 14 | BG5: 8 | BH5: 18 | BI5: 12 | BJ5: 2 | BK5: 16 | BL5: 6

Sheet Misc (hidden)
A1: Move | B1: TRUE
A2: Direction | B2: -4121
A5: GIRs | B5: 1 | C5: =+B5+1 -> 2 | D5: 3 | E5: 4 | F5: 5 | G5: 6 | H5: 7 | I5: 8 | J5: 9 | K5: 10 | L5: 11 | M5: 12 | N5: 13
A6: Score | B6: 93 | C6: 91 | D6: 89 | E6: 87 | F6: 85 | G6: 83 | H6: 81 | I6: 79 | J6: 77 | K6: 75 | L6: 73 | M6: 71 | N6: 69
A8: =Main!A1 -> Golf Stats v1.7
